{"text_format":"3","workbook":"xlsx","n_sheets":26,"sheets":["Suma","Część 01","Część 02","Część 03","Część 04","Część 05","Część 06","Część 07","Część 08","Część 09","Część 10","Część 11","Część 12","Część 13","Część 14","Część 15","Część 16","Część 17","Część 18","Część 19","Część 20","Część 21","Część 22","Część 23","Część 24","Arkusz1"],"not_rendered":{"macros":1,"defined_names":34},"read":"whole","date_system":"1900"}

{"sheet":"Suma","index":0,"n_rows":28,"n_cols":3,"rows_kept":28,"merged":[[1,0,2,0],[1,1,2,1],[1,2,2,2]]}
[]
["odwołanie","Pakiet","Nazwa"]
[]
[{"$f":"HYPERLINK(\"#'Część 01'!A1\",\"przejdz do\")","v":"przejdz do"},{"$f":"'Część 01'!$A$4","v":"Część 01"},{"$f":"'Część 01'!$A$5","v":"Wialki chromatograficzne"}]
[{"$f":"HYPERLINK(\"#'Część 02'!A1\",\"przejdz do\")","v":"przejdz do"},{"$f":"'Część 02'!$A$4","v":"Część 02"},{"$f":"'Część 02'!$A$5","v":"Filtry strzykawkowe"}]
[{"$f":"HYPERLINK(\"#'Część 03'!A1\",\"przejdz do\")","v":"przejdz do"},{"$f":"'Część 03'!$A$4","v":"Część 03"},{"$f":"'Część 03'!$A$5","v":"Kolumna analityczna do chromatografii cieczowej oraz prekolumna "}]
[{"$f":"HYPERLINK(\"#'Część 04'!A1\",\"przejdz do\")","v":"przejdz do"},{"$f":"'Część 04'!$A$4","v":"Część 04"},{"$f":"'Część 04'!$A$5","v":"Kolumny chromatograficzne do HPLC - pr. wody i kosmetyków, witamin, żywności"}]
[{"$f":"HYPERLINK(\"#'Część 05'!A1\",\"przejdz do\")","v":"przejdz do"},{"$f":"'Część 05'!$A$4","v":"Część 05"},{"$f":"'Część 05'!$A$5","v":"Wyposażenie do chromatografu jonowego"}]
[{"$f":"HYPERLINK(\"#'Część 06'!A1\",\"przejdz do\")","v":"przejdz do"},{"$f":"'Część 06'!$A$4","v":"Część 06"},{"$f":"'Część 06'!$A$5","v":"Kolumna chromatograficzna"}]
[{"$f":"HYPERLINK(\"#'Część 07'!A1\",\"przejdz do\")","v":"przejdz do"},{"$f":"'Część 07'!$A$4","v":"Część 07"},{"$f":"'Część 07'!$A$5","v":"Lejki polipropylenowe "}]
[{"$f":"HYPERLINK(\"#'Część 08'!A1\",\"przejdz do\")","v":"przejdz do"},{"$f":"'Część 08'!$A$4","v":"Część 08"},{"$f":"'Część 08'!$A$5","v":"Fiolki scyntylacyjne"}]
[{"$f":"HYPERLINK(\"#'Część 09'!A1\",\"przejdz do\")","v":"przejdz do"},{"$f":"'Część 09'!$A$4","v":"Część 09"},{"$f":"'Część 09'!$A$5","v":"Probówki wirówkowe typu Falcon"}]
[{"$f":"HYPERLINK(\"#'Część 10'!A1\",\"przejdz do\")","v":"przejdz do"},{"$f":"'Część 10'!$A$4","v":"Część 10"},{"$f":"'Część 10'!$A$5","v":"Naczynia z tworzyw sztucznych"}]
[{"$f":"HYPERLINK(\"#'Część 11'!A1\",\"przejdz do\")","v":"przejdz do"},{"$f":"'Część 11'!$A$4","v":"Część 11"},{"$f":"'Część 11'!$A$5","v":"Probówki do poboru prób wirusologicznych "}]
[{"$f":"HYPERLINK(\"#'Część 12'!A1\",\"przejdz do\")","v":"przejdz do"},{"$f":"'Część 12'!$A$4","v":"Część 12"},{"$f":"'Część 12'!$A$5","v":"Końcówki do pipet i pudełka"}]
[{"$f":"HYPERLINK(\"#'Część 13'!A1\",\"przejdz do\")","v":"przejdz do"},{"$f":"'Część 13'!$A$4","v":"Część 13"},{"$f":"'Część 13'!$A$5","v":"Końcówki do pipet Eppendorf"}]
[{"$f":"HYPERLINK(\"#'Część 14'!A1\",\"przejdz do\")","v":"przejdz do"},{"$f":"'Część 14'!$A$4","v":"Część 14"},{"$f":"'Część 14'!$A$5","v":"Strzykawki jednorazowe"}]
[{"$f":"HYPERLINK(\"#'Część 15'!A1\",\"przejdz do\")","v":"przejdz do"},{"$f":"'Część 15'!$A$4","v":"Część 15"},{"$f":"'Część 15'!$A$5","v":"Probówki typu eppendorf  "}]
[{"$f":"HYPERLINK(\"#'Część 16'!A1\",\"przejdz do\")","v":"przejdz do"},{"$f":"'Część 16'!$A$4","v":"Część 16"},{"$f":"'Część 16'!$A$5","v":"Ezy polistyrenowe, paleczki i głaszczki"}]
[{"$f":"HYPERLINK(\"#'Część 17'!A1\",\"przejdz do\")","v":"przejdz do"},{"$f":"'Część 17'!$A$4","v":"Część 17"},{"$f":"'Część 17'!$A$5","v":"Płytki Petriego"}]
[{"$f":"HYPERLINK(\"#'Część 18'!A1\",\"przejdz do\")","v":"przejdz do"},{"$f":"'Część 18'!$A$4","v":"Część 18"},{"$f":"'Część 18'!$A$5","v":"Wymazówki z podłożem transportowym AMIES "}]
[{"$f":"HYPERLINK(\"#'Część 19'!A1\",\"przejdz do\")","v":"przejdz do"},{"$f":"'Część 19'!$A$4","v":"Część 19"},{"$f":"'Część 19'!$A$5","v":"System do przechowywania mikroorganizmów w stanie zamrożonym"}]
[{"$f":"HYPERLINK(\"#'Część 20'!A1\",\"przejdz do\")","v":"przejdz do"},{"$f":"'Część 20'!$A$4","v":"Część 20"},{"$f":"'Część 20'!$A$5","v":"Zestaw lejków plastikowych oraz filtrów do filtracji membranowej "}]
[{"$f":"HYPERLINK(\"#'Część 21'!A1\",\"przejdz do\")","v":"przejdz do"},{"$f":"'Część 21'!$A$4","v":"Część 21"},{"$f":"'Część 21'!$A$5","v":"Elektroda pehametryczna"}]
[{"$f":"HYPERLINK(\"#'Część 22'!A1\",\"przejdz do\")","v":"przejdz do"},{"$f":"'Część 22'!$A$4","v":"Część 22"},{"$f":"'Część 22'!$A$5","v":"Torebki do sterylizacji w autoklawie"}]
[{"$f":"HYPERLINK(\"#'Część 23'!A1\",\"przejdz do\")","v":"przejdz do"},{"$f":"'Część 23'!$A$4","v":"Część 23"},{"$f":"'Część 23'!$A$5","v":"Pałeczki z wacikiem do wymazów"}]
[{"$f":"HYPERLINK(\"#'Część 24'!A1\",\"przejdz do\")","v":"przejdz do"},{"$f":"'Część 24'!$A$4","v":"Część 24"},{"$f":"'Część 24'!$A$5","v":"Pompka wodna strumieniowa (PP)"}]
[null,null,"SUMA"]

{"sheet":"Część 01","index":1,"n_rows":24,"n_cols":10,"rows_kept":24,"merged":[[0,6,0,9],[2,0,2,9],[3,0,3,9],[4,0,4,9],[6,0,8,0],[6,1,8,1],[6,2,8,2],[6,3,8,3],[6,4,6,5],[6,6,8,6],[6,7,8,7],[6,8,8,8],[6,9,8,9],[7,4,8,4],[7,5,8,5],[16,1,16,8],[17,2,17,9],[18,2,18,9],[19,2,19,9]]}
[null,null,"AGZ.272.7.2025",{"$nulls":3},"Załącznik 1A do SWZ"]
[]
["OPIS PRZEDMIOTU ZAMÓWIENIA - KALKULACJA CENY OFERTY"]
[{"$f":"MID(CELL(\"nazwa_pliku\",A1),FIND(\"]\",CELL(\"nazwa_pliku\",A1),1)+1,100)","v":"Część 01"}]
["Wialki chromatograficzne"]
[{"$f":"HYPERLINK(\"#'Suma'!A1\",\"wstecz\")","v":"wstecz"}]
[null,"L.p.","Przedmiot zamówienia","Szczegółowy opis","Opis oferowanego produktu",null,"Jednostka miary","Ilość","Cena jednostkowa brutto [zł] **","Wartość brutto [zł] "]
[{"$nulls":4},"Producent*","Nr katalogowy producenta*"]
[]
[null,"1.","Vialki chromatograficzne z nakrętkami i septami  (komplet)","• objętość vialki: 1,5 ml;\n• wymiary vialki: 32x12 mm;\n• wykonane ze szkła oranżowego;\n• z białą etykietą;\n• z szeroką szyjką, zakręcane z gwintem ND9;\n• nakrętka ND9 z PP z centralnym otworem 6 mm;\n• septa wykonana z PTFE/silikon (pasująca do nakrętek).",null,null,"zestaw= 100 szt",110,null,{"$f":"H10*I10","v":{"v":0,"d":"0.00"}}]
[null,"2.","Vialki  chromatograficzne zakręcane z zakrętkami i septami (komplet)","• pojemność 1,1ml (do próbek o małych objętościach);\n• wymiary vialki: 11,6-12,0x32 mm;\n• zakręcane z gwintem N9 (9mm);\n• nakrętka ND9 z PP z centralnym otworem 6 mm;\n• materiał septy silikon/PTFE;\n• wykonane ze szkła bezbarwnego;\n• płaskodenne z solidną szklaną podstawą, ze stożkiem wewnętrznym;\n• lejek 15µL;\n• z szeroką szyjką.",null,null,"zestaw= 100 szt",1,null,{"$f":"H11*I11","v":{"v":0,"d":"0.00"}}]
[null,"3.","Vialki  chromatograficzne zakręcane z zakrętkami i septami (komplet)","np. producent: Waters \nnr kat. 186000307C \nlub produkt równoważny***\n• pojemność 1,5 - 2ml; \n• wymiary vialki: 12x32 mm;                                  \n• zakręcane z gwintem N9 (9mm);\n• zakrętki niebieskie z mocowaną przecietą septą;\n• materiał septy silikon/PTFE, \n• wykonana ze szkła bezbarwnego,                      \n• z polem do opisu.",null,null,"zestaw= 100 szt",5,null,{"v":0,"d":"0.00"}]
[null,"4.","Nakrętki z septami","• nakrętka zkręcana z gwintem ND9;                                                         • wykonana z PP;\n• średnica nakrętki 9mm ;   \n• otwór centralny nakrętki  6mm ; \n• septa silikon/PTFE.\n",null,null,"op. =\n 100 szt",10,null,{"v":0,"d":"0.00"}]
[null,"5.","Naczynka do autosamplera\n(kompatybilne z PSD 120 firmy Varian)","• wykonane z polistyrenu;                                                         • objętość 1,5 ml;\n• wymiary: 15x23 mm ;  \n• układ stożkowy\n• do roztworów kwaśnych i zasadowych\n",null,null,"op. =\n 1000 szt",1,null,{"v":0,"d":"0.00"}]
[null,"6.","Wialki szklane EPA , bursztynowe, \n","np. producent: Biosens \nnr kat. BS2420B \nlub produkt równoważny***\n• Vialki szklane EPA, \n• bursztynowe, \n• z gwintem ND24, \n•  Objętość 20 ml,\n• Wymiary 27,5x57 mm",null,null,"op. = 100szt.",1,null,{"v":0,"d":"0.00"}]
[null,"7.","Nakrętka bez otworu","• nakrętka bez otworu pasujaca do poz.7\n• do fiolek EPA z gwintem ND24, \n• septa naturalny PTFE/silikon.\n",null,null,"op.=100 szt.",1,null,{"v":0,"d":"0.00"}]
[null,"Cena oferty (brutto):",{"$nulls":7},{"$f":"SUM(J10:J16)","v":{"v":0,"d":"0.00"}}]
[null,"*","Należy wpisać nazwę producenta oraz numer katalogowy producenta oferowanego produktu. Niepodanie ww. danych będzie skutkować odrzuceniem oferty, chyba że dane te będą jednoznacznie wynikać z innych dokumentów dołączonych do oferty.\n"]
[null,"**","Zawiera podatek od towarów i usług (VAT) wg obowiązującej stawki oraz koszty wszystkich świadczeń niezbędnych do wykonania zamówienia, w szczególności koszty transportu, ubezpieczenia, opakowania (także kaucjonowanego) itp."]
[null,"***","Wykonawca oferujący produkt innego producenta, o innym numerze katalogowym niż wskazany jako przykład zobowiązany jest dostarczyć dokumenty potwierdzające równoważność oferowanego produktu z wymaganiami przedstawionymi w tabeli w języku polskim lub angielskim. "]
[]
[null,"Wymagania dodatkowe:"]
[]
[null,"1.","Miejsce dostawy:\n","WSSE Kraków  ul. Prądnicka 76, 31-202 Kraków\n"]

{"sheet":"Część 02","index":2,"n_rows":31,"n_cols":10,"rows_kept":31,"merged":[[0,6,0,9],[2,0,2,9],[3,0,3,9],[4,0,4,9],[6,0,8,0],[6,1,8,1],[6,2,8,2],[6,3,8,3],[6,4,6,5],[6,6,8,6],[6,7,8,7],[6,8,8,8],[6,9,8,9],[7,4,8,4],[7,5,8,5],[21,1,21,8],[22,2,22,9],[23,2,23,9],[24,2,24,9],[25,2,25,9]]}
[null,null,{"$f":"'Część 01'!$C$1","v":"AGZ.272.7.2025"},{"$nulls":3},"Załącznik 1A do SWZ"]
[]
["OPIS PRZEDMIOTU ZAMÓWIENIA - KALKULACJA CENY OFERTY"]
[{"$f":"MID(CELL(\"nazwa_pliku\",A1),FIND(\"]\",CELL(\"nazwa_pliku\",A1),1)+1,100)","v":"Część 02"}]
["Filtry strzykawkowe"]
[{"$f":"HYPERLINK(\"#'Suma'!A1\",\"wstecz\")","v":"wstecz"}]
[null,"L.p.","Przedmiot zamówienia","Szczegółowy opis","Opis oferowanego produktu",null,"Jednostka miary ****","Ilość ****","Cena jednostkowa brutto [zł] **","Wartość brutto [zł] "]
[{"$nulls":4},"Producent*","Nr katalogowy producenta*"]
[]
[null,"1.","Filtry strzykawkowe ","• z regenerowanej celulozy (RC);\n• średnica filtra: 13-17 mm; \n• wielkość porów: 0,20-0,22 μm;\n• pakowane w woreczki/pudełka po 50 - 200 sztuk\n• wymagana ilość:  400 sztuk\n",{"$nulls":5},{"$f":"H10*I10","v":{"v":0,"d":"0.00"}}]
[null,"2.","Filtry strzykawkowe ","• z regenerowanej celulozy (RC);\n• średnica filtra: 25-30 mm;\n• wielkość porów: 0,45 µm;\n• pakowane w woreczki/pudełka po 50 - 200 sztuk\n• wymagana ilość: 400 sztuk\n",{"$nulls":5},{"$f":"H11*I11","v":{"v":0,"d":"0.00"}}]
[null,"3.","Filtry strzykawkowe ","• z PTFE;\n• średnica filtra: 13-17 mm;\n• wielkość porów: 0,20-0,22 μm;\n• pakowane w woreczki/pudełka po 50 - 100 sztuk\n• wymagana ilość:  700 sztuk\n",{"$nulls":5},{"v":0,"d":"0.00"}]
[null,"4.","Filtry strzykawkowe \n","• z PTFE hydrofilowego;\n• średnica filtra: 13-17 mm;\n• wielkość porów: 0,20-0,22 μm;\n• pakowane w woreczki/pudełka po 50 - 100 sztuk\n• wymagana ilość:  300 sztuk\n",{"$nulls":5},{"v":0,"d":"0.00"}]
[null,"5.","Filtry strzykawkowe ","• z PTFE;\n• średnica filtra: 13-17 mm;\n• wielkość porów: 0,20;\n• pakowane w woreczki/pudełka po 50 - 200 sztuk\n• wymagana ilość:  400 sztuk\n",{"$nulls":5},{"v":0,"d":"0.00"}]
[null,"6.","Filtry strzykawkowe \n","• z PTFE z prefiltrem z mikrowłókna szklanego (GF); \n• wielkość porów: 0,20-0,22 μm;                 \n• membrana 13 mm;\n• z zakończeniami typu Luer",null,null," \nop.=\n100szt.",2,null,{"v":0,"d":"0.00"}]
[null,"7.","Filtry strzykawkowe ","• z PTFE;\n• średnica filtra: 25-30 mm; \n• wielkość porów: 0,45 μm;\n• pakowane w woreczki/pudełka po 50-100 szt\n• wymagana ilość:  100 sztuk\n",{"$nulls":5},{"v":0,"d":"0.00"}]
[null,"8.","Filtry strzykawkowe ","• z PTFE;\n• średnica filtra: 25-30 mm; \n• wielkość porów: 0,45 μm;\n• pakowane w woreczki/pudełka po 50-100 szt\n• wymagana ilość:  100 sztuk\n",{"$nulls":5},{"v":0,"d":"0.00"}]
[null,"9.","Sączki strzykawkowe ","np. producent: ALFATEC\nnr kat. CACA2545N1\nlub produkt równoważny***                                  • matryca z CA (z octanu celulozy); \n• wielkość porów: 0,45 μm;                 \n• średnica 25-30 mm;\n\n",null,null," \nop.=\n100szt.",1,null,{"v":0,"d":"0.00"}]
[null,"10.","Sączki strzykawkowe \n","np. producent: ALFATEC\nnr kat. CACA2522N1\nlub produkt równoważny***                                  • matryca z CA (z octanu celulozy); \n• wielkość porów: 0,22 μm;                 \n• średnica 25 mm;\n",null,null," \nop.=\n100szt.",1,null,{"v":0,"d":"0.00"}]
[null,"11.","Filtry strzykawkowe \n","• z PTFE z prefiltrem z mikrowłókna szklanego (GF); \n• wielkość porów: 0,45 μm;                 \n• membrana 13 mm;\n• z zakończeniami typu Luer\n",null,null," \nop.=\n100st.",3,null,{"v":0,"d":"0.00"}]
[null,"12.","Sączki strzykawkowe","np. producent: ALFATEC\nnr kat. PVD2522NG1\nlub produkt równoważny***                                  \n• z PVDF z prefiltrem z mikrowłókna szklanego (GF) ; \n• wielkość porów: 0,22 μm;                 \n• średnica 25 mm;\n",null,null," \nop.=\n100szt.",1,null,{"v":0,"d":"0.00"}]
[null,"Cena oferty (brutto):",{"$nulls":7},{"$f":"SUM(J10:J21)","v":{"v":0,"d":"0.00"}}]
[null,"*","Należy wpisać nazwę producenta oraz numer katalogowy producenta oferowanego produktu. Niepodanie ww. danych będzie skutkować odrzuceniem oferty, chyba że dane te będą jednoznacznie wynikać z innych dokumentów dołączonych do oferty."]
[null,"**","Zawiera podatek od towarów i usług (VAT) wg obowiązującej stawki oraz koszty wszystkich świadczeń niezbędnych do wykonania zamówienia, w szczególności koszty transportu, ubezpieczenia, opakowania (także kaucjonowanego) itp."]
[null,"***","Wykonawca oferujący produkt innego producenta, o innym numerze katalogowym niż wskazany jako przykład zobowiązany jest dostarczyć dokumenty potwierdzające równoważność oferowanego produktu z wymaganiami przedstawionymi w tabeli w języku polskim lub angielskim. "]
[null,"****","Należy wpisać odpowiednio jednostkę miary i ilość oferowanych jednostek miary.                                                                                                                                                             UWAGA: Przy wskazaniu jako jednostki miary - \"opakowanie\" należy wpisać ile sztuk jest zawartych w opakowaniu, np. opakowanie = 50 sztuk.\nJako jednostkę miary należy wskazać opakowanie, które zostanie wycenione w kolumnie \"cena jednostkowa brutto\" i będzie możliwym zrealizowanie zamówienia na takie pojedyńcze opakowanie."]
[]
[null,"Wymagania dodatkowe:"]
[]
[null,"1.","Miejsce dostawy:\n","WSSE w Krakowie  ul. Prądnicka 76, 31-202 Kraków - dla poz. 1-7, 9-12."]
[{"$nulls":3},"WSSE Oddział Laboratoryjny w Tarnowie  ul. Mościckiego 10,  33-100 Tarnów - dla poz. 8"]

{"sheet":"Część 03","index":3,"n_rows":19,"n_cols":21,"rows_kept":19,"merged":[[0,6,0,9],[2,0,2,9],[3,0,3,9],[4,0,4,9],[6,0,8,0],[6,1,8,1],[6,2,8,2],[6,3,8,3],[6,4,6,5],[6,6,8,6],[6,7,8,7],[6,8,8,8],[6,9,8,9],[6,10,8,10],[6,11,7,12],[6,13,8,13],[6,14,8,14],[6,15,8,15],[6,16,8,16],[6,17,7,18],[6,19,8,19],[6,20,8,20],[7,4,8,4],[7,5,8,5],[11,1,11,8],[11,10,11,13],[12,2,12,9],[12,10,12,16],[13,2,13,9],[14,2,14,9]]}
[null,null,{"$f":"'Część 01'!$C$1","v":"AGZ.272.7.2025"},{"$nulls":3},"Załącznik 1A do SWZ"]
[]
["OPIS PRZEDMIOTU ZAMÓWIENIA - KALKULACJA CENY OFERTY"]
[{"$f":"MID(CELL(\"nazwa_pliku\",A1),FIND(\"]\",CELL(\"nazwa_pliku\",A1),1)+1,100)","v":"Część 03"}]
["Kolumna analityczna do chromatografii cieczowej oraz prekolumna "]
[{"$f":"HYPERLINK(\"#'Suma'!A1\",\"wstecz\")","v":"wstecz"}]
[null,"L.p.","Przedmiot zamówienia","Szczegółowy opis","Opis oferowanego produktu",null,"Jednostka miary","Ilość","Cena jednostkowa brutto [zł] **","Wartość brutto [zł] ","Oddział","Przeznaczenie ",null,"Cena jednostkowa netto","Wartość netto","VAT","Wartość brutto","Wartość",null,"§\n4210","§\n4230"]
[{"$nulls":4},"Producent*","Nr katalogowy producenta*"]
[{"$nulls":11},"N","UZ",{"$nulls":4},"N","UZ"]
[null,"1.","Kolumna analityczna do chromatografii cieczowej                 \n","np. producent: Supelco\nnr kat.504971\nlub produkt równoważny***\n• kolumna Discovery C18;\n• wymiary: 25 cm x 4.6 mm;\n• wielkość ziaren: 5 µm;\n• szerokość porów: 180 Å;\n• powierzchnia właściwa: 300 m2/g \n• zakres pH 2-7,5\n",null,null,"szt.",1,null,{"$f":"H10*I10","v":{"v":0,"d":"0.00"}},"LZT",{"v":0.52,"d":"52%"},{"$f":"1-L10","v":{"v":0.48,"d":"48%"}},{"v":2500,"d":"2,500.00"},{"$f":"PRODUCT($H10,$N10)","v":{"v":2500,"d":"2,500.00"}},{"v":0.23,"d":"23%"},{"$f":"PRODUCT(O10+O10*P10)","v":{"v":3075,"d":"3,075.00"}},{"$f":"Q10*L10","v":{"v":1599,"d":"1,599.00"}},{"$f":"Q10*M10","v":{"v":1476,"d":"1,476.00"}},null,{"$f":"Q10","v":{"v":3075,"d":"3,075.00"}}]
[null,"2.","Prekolumna typ: Superguard Discovery","np. producent: Supelco \nnr kat. 505137        \nlub produkt równoważny***                      \n• kolumna ochronna;\n• wymiary: 2cm x 4.0 mm;\n• wielkość ziaren: 5 µm.    \n                    ",null,null,"op. = \n2szt.",1,null,{"$f":"H11*I11","v":{"v":0,"d":"0.00"}},"LZT",{"v":0.52,"d":"52%"},{"v":0.48,"d":"48%"},{"v":785,"d":"785.00"},{"$f":"PRODUCT($H11,$N11)","v":{"v":785,"d":"785.00"}},{"v":0.23,"d":"23%"},{"$f":"PRODUCT(O11+O11*P11)","v":965.55},{"$f":"Q11*L11","v":{"v":502.086,"d":"502.09"}},{"$f":"Q11*M11","v":{"v":463.46399999999994,"d":"463.46"}},null,965.55]
[null,"Cena oferty (brutto):",{"$nulls":7},{"$f":"SUM(J10:J11)","v":{"v":0,"d":"0.00"}},"RAZEM",{"$nulls":3},{"$f":"SUM(O10:O11)","v":{"v":3285,"d":"3,285.00"}},null,{"$f":"SUM(Q10:Q11)","v":{"v":4040.55,"d":"4,040.55"}},{"$f":"SUM(R10:R11)","v":{"v":2101.0860000000002,"d":"2,101.09"}},{"$f":"SUM(S10:S11)","v":{"v":1939.464,"d":"1,939.46"}},{"$f":"SUM(T10:T11)","v":{"v":0,"d":"0.00"}},{"$f":"SUM(U10:U11)","v":{"v":4040.55,"d":"4,040.55"}}]
[null,"*","Należy wpisać nazwę producenta oraz numer katalogowy producenta oferowanego produktu. Niepodanie ww. danych będzie skutkować odrzuceniem oferty, chyba że dane te będą jednoznacznie wynikać z innych dokumentów dołączonych do oferty.",{"$nulls":7},"Rozkład procentowy całego pakietu:",{"$nulls":6},{"$f":"R12/$Q$12","v":{"v":0.52,"d":"52%"}},{"$f":"S12/$Q$12","v":{"v":0.48,"d":"48%"}},4210,4230]
[null,"**","Zawiera podatek od towarów i usług (VAT) wg obowiązującej stawki oraz koszty wszystkich świadczeń niezbędnych do wykonania zamówienia, w szczególności koszty transportu, ubezpieczenia, opakowania (także kaucjonowanego) itp."]
[null,"***","Wykonawca oferujący produkt innego producenta, o innym numerze katalogowym niż wskazany jako przykład zobowiązany jest dostarczyć dokumenty potwierdzające równoważność oferowanego produktu z wymaganiami przedstawionymi w tabeli w języku polskim lub angielskim. "]
[]
[null,"Wymagania dodatkowe:"]
[]
[null,"1.","Miejsce dostawy:\n","WSSE Oddział Laboratoryjny w Tarnowie  ul. Mościckiego 10,  33-100 Tarnów"]

{"sheet":"Część 04","index":4,"n_rows":22,"n_cols":10,"rows_kept":22,"merged":[[0,6,0,9],[2,0,2,9],[3,0,3,9],[4,0,4,9],[6,0,8,0],[6,1,8,1],[6,2,8,2],[6,3,8,3],[6,4,6,5],[6,6,8,6],[6,7,8,7],[6,8,8,8],[6,9,8,9],[7,4,8,4],[7,5,8,5],[14,1,14,8],[15,2,15,9],[16,2,16,9],[17,2,17,9]]}
[null,null,{"$f":"'Część 01'!$C$1","v":"AGZ.272.7.2025"},{"$nulls":3},"Załącznik 1A do SWZ"]
[]
["OPIS PRZEDMIOTU ZAMÓWIENIA - KALKULACJA CENY OFERTY"]
[{"$f":"MID(CELL(\"nazwa_pliku\",A1),FIND(\"]\",CELL(\"nazwa_pliku\",A1),1)+1,100)","v":"Część 04"}]
["Kolumny chromatograficzne do HPLC - pr. wody i kosmetyków, witamin, żywności"]
[{"$f":"HYPERLINK(\"#'Suma'!A1\",\"wstecz\")","v":"wstecz"}]
[null,"L.p.","Przedmiot zamówienia","Szczegółowy opis","Opis oferowanego produktu",null,"Jednostka miary","Ilość","Cena jednostkowa brutto [zł] **","Wartość brutto [zł] "]
[{"$nulls":4},"Producent*","Nr katalogowy producenta*"]
[]
[null,"1.","Prekolumna \n","np. producent: Thermo Scientific\nnr kat. 25005-014001 \nlub produkt równoważny***\n• kolumna ochronna Hypersil Gold pasująca do kolumny Hypersil Gold C18;\n• wymiary: 10 mm x 4 mm; \n• kształt i wielkość ziarna w wypełnieniu: sferyczny - 5 µm.\n",null,null,"op.=\n4 szt.",1,null,{"$f":"H10*I10","v":{"v":0,"d":"0.00"}}]
[null,"2.","Kolumna analityczna Nucleodur C18 Gravity\n","np. producent: Macherey-Nagel \nnr. kat. 760082.46 \nlub produkt równoważny***       \n• Nucleodur C18 Gravity;\n• 250 mm x 4,6 mm;\n• wielkość ziarna 3 µm                                 \n• stabilna w zakresie pH 1-11;\n• efektywna zawartość węgla 18%.\n",null,null,"szt.",1,null,{"$f":"H11*I11","v":{"v":0,"d":"0.00"}}]
[null,"3.","Prekolumna analityczna  CC 8/4   ","np. producent: Macherey-Nagel \nnr. kat. 761902.30 \nlub produkt równoważny***       \n• Prekolumna do kolumny Nucleodur C 18 Gravity;\n• wielkość porów 110 Å;\n• wymiary: 4mm x 3 mm; \n• wielkość ziarna 3 um.\n",null,null,"op. = \n3szt.",1,null,{"v":0,"d":"0.00"}]
[null,"4.","Uchwyt na prekolumnę","np. producent: Macherey-Nagel \nnr. kat. 761902.30 \nlub produkt równoważny***\n• uchwyt na prekolumnę Nucleodur C18 Gravity 3 µm 4x3 mm.\n",null,null,"szt.",1,null,{"v":0,"d":"0.00"}]
[null,"5.","Prekolumna analityczna","np. Producent: Restek       \nnr. kat 921950210  \nlub produkt równoważny***\n• kolumna ochronna Pinnacle II PAH           \n• wymiary: 10 mm x 4 mm.\n",null,null,"op. = \n3szt.",1,null,{"v":0,"d":"0.00"}]
[null,"Cena oferty (brutto):",{"$nulls":7},{"$f":"SUM(J10:J14)","v":{"v":0,"d":"0.00"}}]
[null,"*","Należy wpisać nazwę producenta oraz numer katalogowy producenta oferowanego produktu. Niepodanie ww. danych będzie skutkować odrzuceniem oferty, chyba że dane te będą jednoznacznie wynikać z innych dokumentów dołączonych do oferty."]
[null,"**","Zawiera podatek od towarów i usług (VAT) wg obowiązującej stawki oraz koszty wszystkich świadczeń niezbędnych do wykonania zamówienia, w szczególności koszty transportu, ubezpieczenia, opakowania (także kaucjonowanego) itp."]
[null,"***","Wykonawca oferujący produkt innego producenta, o innym numerze katalogowym niż wskazany jako przykład zobowiązany jest dostarczyć dokumenty potwierdzające równoważność oferowanego produktu z wymaganiami przedstawionymi w tabeli w języku polskim lub angielskim. "]
[]
[null,"Wymagania dodatkowe:"]
[]
[null,"1.","Miejsce dostawy:\n","WSSE Kraków  ul. Prądnicka 76, 31-202 Kraków \n"]

{"sheet":"Część 05","index":5,"n_rows":18,"n_cols":10,"rows_kept":18,"merged":[[0,6,0,9],[2,0,2,9],[3,0,3,9],[4,0,4,9],[6,0,8,0],[6,1,8,1],[6,2,8,2],[6,3,8,3],[6,4,6,5],[6,6,8,6],[6,7,8,7],[6,8,8,8],[6,9,8,9],[7,4,8,4],[7,5,8,5],[10,1,10,8],[11,2,11,9],[12,2,12,9],[13,2,13,9]]}
[null,null,{"$f":"'Część 01'!$C$1","v":"AGZ.272.7.2025"},{"$nulls":3},"Załącznik 1A do SWZ"]
[]
["OPIS PRZEDMIOTU ZAMÓWIENIA - KALKULACJA CENY OFERTY"]
[{"$f":"MID(CELL(\"nazwa_pliku\",A1),FIND(\"]\",CELL(\"nazwa_pliku\",A1),1)+1,100)","v":"Część 05"}]
["Wyposażenie do chromatografu jonowego"]
[{"$f":"HYPERLINK(\"#'Suma'!A1\",\"wstecz\")","v":"wstecz"}]
[null,"L.p.","Przedmiot zamówienia","Szczegółowy opis","Opis oferowanego produktu",null,"Jednostka miary","Ilość","Cena jednostkowa brutto [zł] **","Wartość brutto [zł] "]
[{"$nulls":4},"Producent*","Nr katalogowy producenta*"]
[]
[null,"1.","Vialki chromatograficzne z zatyczkami i filtrami\n\n","np. producent: Thermo Scientific \nnr kat. 038141 \nlub produkt  równowazny*** \n• poj. 5 ml\n• pasujące do autosamplera AS DV DIONEX\n• zastosowanie: do chromatografu: \n ICS-1600 i ICS-2500.\n",null,null,"op. = 250 szt.",4,null,{"$f":"H10*I10","v":{"v":0,"d":"0.00"}}]
[null,"Cena oferty (brutto):",{"$nulls":7},{"$f":"SUM(J10:J10)","v":{"v":0,"d":"0.00"}}]
[null,"*","Należy wpisać nazwę producenta oraz numer katalogowy producenta oferowanego produktu. Niepodanie ww. danych będzie skutkować odrzuceniem oferty, chyba że dane te będą jednoznacznie wynikać z innych dokumentów dołączonych do oferty."]
[null,"**","Zawiera podatek od towarów i usług (VAT) wg obowiązującej stawki oraz koszty wszystkich świadczeń niezbędnych do wykonania zamówienia, w szczególności koszty transportu, ubezpieczenia, opakowania (także kaucjonowanego) itp."]
[null,"***","Wykonawca oferujący produkt innego producenta, o innym numerze katalogowym niż wskazany jako przykład zobowiązany jest dostarczyć dokumenty potwierdzające równoważność oferowanego produktu z wymaganiami przedstawionymi w tabeli w języku polskim lub angielskim. "]
[]
[null,"Wymagania dodatkowe:"]
[]
[null,"1.","Miejsce dostawy: \n","WSSE w Krakowie  ul. Prądnicka 76, 31-202 Kraków"]

{"sheet":"Część 06","index":6,"n_rows":20,"n_cols":10,"rows_kept":20,"merged":[[0,6,0,9],[2,0,2,9],[3,0,3,9],[4,0,4,9],[6,0,8,0],[6,1,8,1],[6,2,8,2],[6,3,8,3],[6,4,6,5],[6,6,8,6],[6,7,8,7],[6,8,8,8],[6,9,8,9],[7,4,8,4],[7,5,8,5],[12,1,12,8],[13,2,13,9],[14,2,14,9],[15,2,15,9]]}
[null,null,{"$f":"'Część 01'!$C$1","v":"AGZ.272.7.2025"},{"$nulls":3},"Załącznik 1A do SWZ"]
[]
["OPIS PRZEDMIOTU ZAMÓWIENIA - KALKULACJA CENY OFERTY"]
[{"$f":"MID(CELL(\"nazwa_pliku\",A1),FIND(\"]\",CELL(\"nazwa_pliku\",A1),1)+1,100)","v":"Część 06"}]
["Kolumna chromatograficzna"]
[{"$f":"HYPERLINK(\"#'Suma'!A1\",\"wstecz\")","v":"wstecz"}]
[null,"L.p.","Przedmiot zamówienia","Szczegółowy opis","Opis oferowanego produktu",null,"Jednostka miary","Ilość","Cena jednostkowa brutto [zł] **","Wartość brutto [zł] "]
[{"$nulls":4},"Producent*","Nr katalogowy producenta*"]
[]
[null,"1.","Kolumna chromatograficzna C18\n","np producent: Phenomenex \ntyp: Gemini NX - C18;\nnr kat. 00G-4454-EO \nlub produkt równoważny***\n• z dodatkowymi wzmocnieniami struktury żelu krzenmionkowego;\n• zakres pH: 1,0 - 12,0;                       \n• kształt i wielkość ziaren: sferyczne, 5 μm;          \n• wymiary: 250 x 4,6 mm;                                       \n• powierzchnia sorpcyjna - 375 m2/g;          \n • zawartość węgla: 14 %\n• upakowanie kolumny: L1.\n",null,null,"szt.",1,null,{"$f":"H10*I10","v":{"v":0,"d":"0.00"}}]
[null,"2.","Kolumna chromatograficzna C18\n","np producent: Phenomenex \ntyp: Synergi 4u Hydro-RP \nnr kat. 00G-4375-EO \nlub produkt równoważny***\n• End Capping hydrofilowy;\n• wielkośc porów 80Å;                       \n• kształt i wielkość ziaren: sferyczne, 4μm;          \n• wymiary: 250 x 4,6 mm;                                       \n• powierzchnia sorpcyjna - 475 m2/g;          \n• zawartość węgla: 19 %\n• objętość porów: 1,05ml/g\n",null,null,"szt.",1,null,{"$f":"H11*I11","v":{"v":0,"d":"0.00"}}]
[null,"3.","Prekolumna\n   ","np. producent: Phenomenex \nnr kat. AJO-7511 \nlub produkt równoważny***           \n• dedykowana do kolumn Synergi 4u Hydro-RP 80Å;\n• wymiary prekolumny 4,0 x 3,0 mm\n• pasująca do uchwytu producenta Phenomenex o nr kat.KJ0-4282.\n",null,null,"op. = 10szt.",1,null,{"v":0,"d":"0.00"}]
[null,"Cena oferty (brutto):",{"$nulls":7},{"$f":"SUM(J10:J12)","v":{"v":0,"d":"0.00"}}]
[null,"*","Należy wpisać nazwę producenta oraz numer katalogowy producenta oferowanego produktu. Niepodanie ww. danych będzie skutkować odrzuceniem oferty, chyba że dane te będą jednoznacznie wynikać z innych dokumentów dołączonych do oferty."]
[null,"**","Zawiera podatek od towarów i usług (VAT) wg obowiązującej stawki oraz koszty wszystkich świadczeń niezbędnych do wykonania zamówienia, w szczególności koszty transportu, ubezpieczenia, opakowania (także kaucjonowanego) itp."]
[null,"***","Wykonawca oferujący produkt innego producenta, o innym numerze katalogowym niż wskazany jako przykład zobowiązany jest dostarczyć dokumenty potwierdzające równoważność oferowanego produktu z wymaganiami przedstawionymi w tabeli w języku polskim lub angielskim. "]
[]
[null,"Wymagania dodatkowe:"]
[]
[null,"1.","Miejsce dostawy: \n","WSSE Kraków  ul. Prądnicka 76, 31-202 Kraków"]

{"sheet":"Część 07","index":7,"n_rows":18,"n_cols":10,"rows_kept":18,"merged":[[0,6,0,9],[2,0,2,9],[3,0,3,9],[4,0,4,9],[6,1,8,1],[6,2,8,2],[6,3,8,3],[6,4,6,5],[6,6,8,6],[6,7,8,7],[6,8,8,8],[6,9,8,9],[7,4,8,4],[7,5,8,5],[10,1,10,8],[11,2,11,9],[12,2,12,9],[13,2,13,9]]}
[null,null,{"$f":"'Część 01'!$C$1","v":"AGZ.272.7.2025"},{"$nulls":3},"Załącznik 1A do SWZ"]
[]
["OPIS PRZEDMIOTU ZAMÓWIENIA - KALKULACJA CENY OFERTY"]
[{"$f":"MID(CELL(\"nazwa_pliku\",A1),FIND(\"]\",CELL(\"nazwa_pliku\",A1),1)+1,100)","v":"Część 07"}]
["Lejki polipropylenowe "]
[{"$f":"HYPERLINK(\"#'Suma'!A1\",\"wstecz\")","v":"wstecz"}]
[null,"L.p.","Przedmiot zamówienia","Szczegółowy opis","Opis oferowanego produktu",null,"Jednostka miary","Ilość","Cena jednostkowa brutto [zł] **","Wartość brutto [zł] "]
[{"$nulls":4},"Producent*","Nr katalogowy producenta*"]
[]
[null,"1.","Lejki polipropylenowe \n","np. producent: BIOSART \nnr kat. 16407-25-ALK \nlub produkt równoważny***\n• plastikowe\n• objętość 250ml, \n• kompatybilne z zestawem trójstanowiskowym Sartorius.\n",null,null,"op.=  50 szt.",1,null,{"$f":"H10*I10","v":{"v":0,"d":"0.00"}}]
[null,"Cena oferty (brutto):",{"$nulls":7},{"$f":"SUM(J10:J10)","v":{"v":0,"d":"0.00"}}]
[null,"*","Należy wpisać nazwę producenta oraz numer katalogowy producenta oferowanego produktu. Niepodanie ww. danych będzie skutkować odrzuceniem oferty, chyba że dane te będą jednoznacznie wynikać z innych dokumentów dołączonych do oferty."]
[null,"**","Zawiera podatek od towarów i usług (VAT) wg obowiązującej stawki oraz koszty wszystkich świadczeń niezbędnych do wykonania zamówienia, w szczególności koszty transportu, ubezpieczenia, opakowania (także kaucjonowanego) itp."]
[null,"***","Wykonawca oferujący produkt innego producenta, o innym numerze katalogowym niż wskazany jako przykład zobowiązany jest dostarczyć dokumenty potwierdzające równoważność oferowanego produktu z wymaganiami przedstawionymi w tabeli w języku polskim lub angielskim. "]
[]
[null,"Wymagania dodatkowe:"]
[]
[null,"1.","Miejsce dostawy:\n","WSSE Oddział Laboratoryjny w Wadowicach  ul. Teatralna 2, 34-100 Wadowice "]

{"sheet":"Część 08","index":8,"n_rows":17,"n_cols":10,"rows_kept":17,"merged":[[0,6,0,9],[2,0,2,9],[3,0,3,9],[4,0,4,9],[6,0,8,0],[6,1,8,1],[6,2,8,2],[6,3,8,3],[6,4,6,5],[6,6,8,6],[6,7,8,7],[6,8,8,8],[6,9,8,9],[7,4,8,4],[7,5,8,5],[10,1,10,8],[11,2,11,9],[12,2,12,9]]}
[null,null,{"$f":"'Część 01'!$C$1","v":"AGZ.272.7.2025"},{"$nulls":3},"Załącznik 1A do SWZ"]
[]
["OPIS PRZEDMIOTU ZAMÓWIENIA - KALKULACJA CENY OFERTY"]
[{"$f":"MID(CELL(\"nazwa_pliku\",A1),FIND(\"]\",CELL(\"nazwa_pliku\",A1),1)+1,100)","v":"Część 08"}]
["Fiolki scyntylacyjne"]
[{"$f":"HYPERLINK(\"#'Suma'!A1\",\"wstecz\")","v":"wstecz"}]
[null,"L.p.","Przedmiot zamówienia","Szczegółowy opis","Opis oferowanego produktu",null,"Jednostka miary","Ilość","Cena jednostkowa brutto [zł] **","Wartość brutto [zł] "]
[{"$nulls":4},"Producent*","Nr katalogowy producenta*"]
[]
[null,"1.","Fiolki scyntylacyjne","• naczynka szklane - szkło borokrzemowe;                                   \n• o pojemności  20 ml;                                       \n•  wymiary: Ø 28 mm, wysokość 61 mm;                                        \n• z zakrętką wyposażoną w metalową wkładkę (aluminium) o średnicy 22 mm z tworzywa mocznikowego\n",null,null,"op.=\n100szt.",2,null,{"$f":"H10*I10","v":{"v":0,"d":"0.00"}}]
[null,"Cena oferty (brutto):",{"$nulls":7},{"$f":"SUM(J10:J10)","v":{"v":0,"d":"0.00"}}]
[null,"*","Należy wpisać nazwę producenta oraz numer katalogowy producenta oferowanego produktu. Niepodanie ww. danych będzie skutkować odrzuceniem oferty, chyba że dane te będą jednoznacznie wynikać z innych dokumentów dołączonych do oferty."]
[null,"**","Zawiera podatek od towarów i usług (VAT) wg obowiązującej stawki oraz koszty wszystkich świadczeń niezbędnych do wykonania zamówienia, w szczególności koszty transportu, ubezpieczenia, opakowania (także kaucjonowanego) itp."]
[]
[null,"Wymagania dodatkowe:"]
[]
[null,"1.","Miejsce dostawy:\n","WSSE Krakowie  ul. Prądnicka 76, 31-202 Kraków"]

{"sheet":"Część 09","index":9,"n_rows":18,"n_cols":10,"rows_kept":18,"merged":[[0,6,0,9],[2,0,2,9],[3,0,3,9],[4,0,4,9],[6,1,8,1],[6,2,8,2],[6,3,8,3],[6,4,6,5],[6,6,8,6],[6,7,8,7],[6,8,8,8],[6,9,8,9],[7,4,8,4],[7,5,8,5],[11,1,11,8],[12,2,12,9],[13,2,13,9]]}
[null,null,{"$f":"'Część 01'!$C$1","v":"AGZ.272.7.2025"},{"$nulls":3},"Załącznik 1A do SWZ"]
[]
["OPIS PRZEDMIOTU ZAMÓWIENIA - KALKULACJA CENY OFERTY"]
[{"$f":"MID(CELL(\"nazwa_pliku\",A1),FIND(\"]\",CELL(\"nazwa_pliku\",A1),1)+1,100)","v":"Część 09"}]
["Probówki wirówkowe typu Falcon"]
[{"$f":"HYPERLINK(\"#'Suma'!A1\",\"wstecz\")","v":"wstecz"}]
[null,"L.p.","Przedmiot zamówienia","Szczegółowy opis","Opis oferowanego produktu",null,"Jednostka miary","Ilość","Cena jednostkowa brutto [zł] **","Wartość brutto [zł] "]
[{"$nulls":4},"Producent*","Nr katalogowy producenta*"]
[]
[null,"1.","Probówki wirówkowe typu Falcon\n","• stożkowe, ze skalą\n• pojemność 50 ml\n• wysokość 115 ± 1 mm, średnica 29 ± 1 mm\n• z zakrętką\n• przejrzyste\n• materiał: tworzywo PP\n• RCF (względna siła odśrodkowa) powyżej      14000\n• wytrzymałe na proces wirowania (niepękające, nieodkształcające się podczas wirowania przy obrotach 4000 na minutę)\n• odporne na działanie stężonych kwasów i chloroformu\n• przy zakręcaniu nieprzeskakujące na gwincie \n",null,null,"op.=\n25 szt.",10,null,{"$f":"H10*I10","v":{"v":0,"d":"0.00"}}]
[null,"2.","Probówki wirówkowe typu Falcon\n","• stożkowe, STOJĄCE, ze skalą\n• pojemność 50 ml\n• wysokość 115 ± 1 mm, średnica 29 ± 1 mm\n• z zakrętką\n• przejrzyste\n• materiał: tworzywo PP\n• odporne na działanie stężonych kwasów i chloroformu\n• przy zakręcaniu nieprzeskakujące na gwincie \n",null,null,"op.=\n25 szt.",4,null,{"$f":"H11*I11","v":{"v":0,"d":"0.00"}}]
[null,"Cena oferty (brutto):",{"$nulls":7},{"$f":"SUM(J10:J11)","v":{"v":0,"d":"0.00"}}]
[null,"*","Należy wpisać nazwę producenta oraz numer katalogowy producenta oferowanego produktu. Niepodanie ww. danych będzie skutkować odrzuceniem oferty, chyba że dane te będą jednoznacznie wynikać z innych dokumentów dołączonych do oferty."]
[null,"**","Zawiera podatek od towarów i usług (VAT) wg obowiązującej stawki oraz koszty wszystkich świadczeń niezbędnych do wykonania zamówienia, w szczególności koszty transportu, ubezpieczenia, opakowania (także kaucjonowanego) itp."]
[]
[null,"Wymagania dodatkowe:"]
[]
[null,"1.","Miejsce dostawy:\n","WSSE Kraków  ul. Prądnicka 76, 31-202 Kraków \n"]

{"sheet":"Część 10","index":10,"n_rows":20,"n_cols":10,"rows_kept":20,"merged":[[0,6,0,9],[2,0,2,9],[3,0,3,9],[4,0,4,9],[6,1,8,1],[6,2,8,2],[6,3,8,3],[6,4,6,5],[6,6,8,6],[6,7,8,7],[6,8,8,8],[6,9,8,9],[7,4,8,4],[7,5,8,5],[12,1,12,8],[13,2,13,9],[14,2,14,9]]}
[null,null,{"$f":"'Część 01'!$C$1","v":"AGZ.272.7.2025"},{"$nulls":3},"Załącznik 1A do SWZ"]
[]
["OPIS PRZEDMIOTU ZAMÓWIENIA - KALKULACJA CENY OFERTY"]
[{"$f":"MID(CELL(\"nazwa_pliku\",A1),FIND(\"]\",CELL(\"nazwa_pliku\",A1),1)+1,100)","v":"Część 10"}]
["Naczynia z tworzyw sztucznych"]
[{"$f":"HYPERLINK(\"#'Suma'!A1\",\"wstecz\")","v":"wstecz"}]
[null,"L.p.","Przedmiot zamówienia","Szczegółowy opis","Opis oferowanego produktu",null,"Jednostka miary","Ilość","Cena jednostkowa brutto [zł] **","Wartość brutto [zł] "]
[{"$nulls":4},"Producent*","Nr katalogowy producenta*"]
[]
[null,"1.","Butelka HDPE  + nakrętka z plombą","• pojemność 100 ml;\n• skala: 20 ml\n• wysokość: 75 ± 5 mm;\n• średnica: 55 ± 5 mm;\n• średnica otworu: 21 ± 2 mm;\n• materiał: HDPE;\n• zamknięcie: nakrętka z pierścieniem gwarancyjnym;\n• kolor nakrętki: niebieski.\n",null,null,"szt.",60,null,{"$f":"H10*I10","v":{"v":0,"d":"0.00"}}]
[null,"2.","Butelka HDPE  + nakrętka z plombą","• pojemność 100 ml;\n• skala: 20 ml\n• wysokość: 75 ± 5 mm;\n• średnica: 55 ± 5 mm;\n• średnica otworu: 21 ± 2 mm;\n• materiał: HDPE;\n• zamknięcie: nakrętka z pierścieniem gwarancyjnym;\n• kolor nakrętki: żółta.\n",null,null,"szt.",30,null,{"$f":"H11*I11","v":{"v":0,"d":"0.00"}}]
[null,"3.","Pipeta Pasteura z tworzywa LDPE","• długość 155 mm ± 5 mm;\n• z podziałką, skalowanie do 3 ml\n",null,null,"op. = \n500szt",3,null,{"$f":"H12*I12","v":{"v":0,"d":"0.00"}}]
[null,"Cena oferty (brutto):",{"$nulls":7},{"$f":"SUM(J10:J12)","v":{"v":0,"d":"0.00"}}]
[null,"*","Należy wpisać nazwę producenta oraz numer katalogowy producenta oferowanego produktu. Niepodanie ww. danych będzie skutkować odrzuceniem oferty, chyba że dane te będą jednoznacznie wynikać z innych dokumentów dołączonych do oferty."]
[null,"**","Zawiera podatek od towarów i usług (VAT) wg obowiązującej stawki oraz koszty wszystkich świadczeń niezbędnych do wykonania zamówienia, w szczególności koszty transportu, ubezpieczenia, opakowania (także kaucjonowanego) itp."]
[]
[null,"Wymagania dodatkowe:"]
[]
[]
[null,"1.","Miejsce dostawy:\n","WSSE Kraków  ul. Prądnicka 76, 31-202 Kraków\n"]

{"sheet":"Część 11","index":11,"n_rows":20,"n_cols":10,"rows_kept":20,"merged":[[0,6,0,9],[2,0,2,9],[3,0,3,9],[4,0,4,9],[6,1,8,1],[6,2,8,2],[6,3,8,3],[6,4,6,5],[6,6,8,6],[6,7,8,7],[6,8,8,8],[6,9,8,9],[7,4,8,4],[7,5,8,5],[10,1,10,8],[11,2,11,9],[12,2,12,9],[13,2,13,9]]}
[null,null,{"$f":"'Część 01'!$C$1","v":"AGZ.272.7.2025"},{"$nulls":3},"Załącznik 1A do SWZ - po zmianie z dnia 15.05.2025 r."]
[]
["OPIS PRZEDMIOTU ZAMÓWIENIA - KALKULACJA CENY OFERTY"]
[{"$f":"MID(CELL(\"nazwa_pliku\",A1),FIND(\"]\",CELL(\"nazwa_pliku\",A1),1)+1,100)","v":"Część 11"}]
["Probówki do poboru prób wirusologicznych "]
[{"$f":"HYPERLINK(\"#'Suma'!A1\",\"wstecz\")","v":"wstecz"}]
[null,"L.p.","Przedmiot zamówienia","Szczegółowy opis","Opis oferowanego produktu",null,"Jednostka miary***","Ilość ***","Cena jednostkowa brutto [zł] **","Wartość brutto [zł] "]
[{"$nulls":4},"Producent*","Nr katalogowy producenta*"]
[]
[null,"1.","Jednorazowe probówki do poboru próbek wirusologicznych medium stabilizującym wirusy","• probówki z podłożem Hanksa do transportu próbek wirusologicznych; \n• do pobierania, transportu i zabezpieczenia próbki do badania wirusów metodą łańcuchowej reakcji polimerazy (PCR);                                      \n• do hodowli wirusów bez wpływu na aktywność wirusa i jego zdolności do infekcji;                                                               \n• ok 3ml medium transportowego stabilizującego wirusa i uniemozliwiającym rozówj bakterii i grzybów;                                                             \n• probówka plastikowa z zakretką;                         \n• z dołączonymi sterylnymi giętkimi wymazówkami z końcówką z flokowanego tworzywa sztucznego, łatwo dającymi się odłamać;                                                                \n• możliwość przechowywania w temperaturze pokojowej.       \n• wymagana ilość: 150 sztuk                                                   ",{"$nulls":5},{"$f":"H10*I10","v":{"v":0,"d":"0.00"}}]
[null,"Cena oferty (brutto):",{"$nulls":7},{"$f":"SUM(J10:J10)","v":{"v":0,"d":"0.00"}}]
[null,"*","Należy wpisać nazwę producenta oraz numer katalogowy producenta oferowanego produktu. Niepodanie ww. danych będzie skutkować odrzuceniem oferty, chyba że dane te będą jednoznacznie wynikać z innych dokumentów dołączonych do oferty."]
[null,"**","Zawiera podatek od towarów i usług (VAT) wg obowiązującej stawki oraz koszty wszystkich świadczeń niezbędnych do wykonania zamówienia, w szczególności koszty transportu, ubezpieczenia, opakowania (także kaucjonowanego) itp."]
[null,"***","Należy wpisać odpowiednio jednostkę miary i ilość oferowanych jednostek miary.                                                                                                                                                             UWAGA: Przy wskazaniu jako jednostki miary - \"opakowanie\" należy wpisać ile sztuk jest zawartych w opakowaniu, np. opakowanie = 50 sztuk.\nJako jednostkę miary należy wskazać opakowanie, które zostanie wycenione w kolumnie \"cena jednostkowa brutto\", co umożliwi zrealizowanie zamówienia na takie pojedyncze opakowanie."]
[]
[null,"Wymagania dodatkowe:"]
[]
[null,"1.","Produkt musi być wyrobem medycznym lub wyrobem do diagnostyki in vitro w rozumieniu ustawy z dnia 07 kwietnia 2022 r. o wyrobach medycznych"]
[null,"2.","Termin ważności: min. 24 miesiące od daty podpisania umowy"]
[null,"3.","Miejsce dostawy:\n","WSSE Krakowie  ul. Prądnicka 76, 31-202 Kraków "]

{"sheet":"Część 12","index":12,"n_rows":26,"n_cols":10,"rows_kept":26,"merged":[[0,6,0,9],[2,0,2,9],[3,0,3,9],[4,0,4,9],[6,1,8,1],[6,2,8,2],[6,3,8,3],[6,4,6,5],[6,6,8,6],[6,7,8,7],[6,8,8,8],[6,9,8,9],[7,4,8,4],[7,5,8,5],[17,1,17,8],[18,2,18,9],[19,2,19,9],[25,3,25,9]]}
[null,null,{"$f":"'Część 01'!$C$1","v":"AGZ.272.7.2025"},{"$nulls":3},"Załącznik 1A do SWZ"]
[]
["OPIS PRZEDMIOTU ZAMÓWIENIA - KALKULACJA CENY OFERTY"]
[{"$f":"MID(CELL(\"nazwa_pliku\",A1),FIND(\"]\",CELL(\"nazwa_pliku\",A1),1)+1,100)","v":"Część 12"}]
["Końcówki do pipet i pudełka"]
[{"$f":"HYPERLINK(\"#'Suma'!A1\",\"wstecz\")","v":"wstecz"}]
[null,"L.p.","Przedmiot zamówienia","Szczegółowy opis","Opis oferowanego produktu",null,"Jednostka miary","Ilość","Cena jednostkowa brutto [zł] **","Wartość brutto [zł] "]
[{"$nulls":4},"Producent*","Nr katalogowy producenta*"]
[]
[null,"1.","Końcówki do pipety automatycznej\n","• kompatybilne z pipetą HTL LAB MATE o pojemności 1000 - 10000 µl;\n• pojemność końcówki: 1 -10 ml;\n• bezbarwne.\n",null,null,"op.=\n100 szt.",2,null,{"$f":"H10*I10","v":{"v":0,"d":"0.00"}}]
[null,"2.","Końcówki do pipet automatycznych  ","• zastosowanie: do analiz mikrobiologicznych;\n• objętość od 50 do 1000 µl;\n• do wielokrotnej sterylizacji;\n• kompatybilne z pipetami Transferpette;\n• końcówki pakowane w worki;\n• długość końcówki max. 7cm.\n• krótki kołnierz -  max. 7mm.\n",null,null,"op. = 1000szt.",2,null,{"$f":"H11*I11","v":{"v":0,"d":"0.00"}}]
[null,"3.","Koncówki do pipety automatycznej","• zastosowanie: do analiz mikrobiologicznych;\n• objętość 10 ml;\n• do wielokrotnej sterylizacji;\n• końcówki pakowane w worki.\n• kompatybilne z pipetami BRAND\n",null,null,"op. = \n200 szt.",3,null,{"v":0,"d":"0.00"}]
[null,"4.","Końcówki do pipet automatycznych \n","• końcówki do pipety BIOHIT i Sartorius pojemność: 100-5000µl;\n• długość końcówki: 150mm; \n• typ: standardowe, długie, niesterylne.\n",null,null,"op. = 100szt.",3,null,{"v":0,"d":"0.00"}]
[null,"5.","Końcówki do pipet automatycznych typ Eppendorf","• zastosowanie: do analiz mikrobiologicznych;\n• objętość od 100-1000 µl\n• do wielokrotnej sterylizacji;\n• kompatybilne z pipetami HTL;\n• końcówki pakowane w worki;\n• długość końcówki - 7 ± 0,1 cm, \n• krótki kołnierz - max. 7 mm.\n",null,null,"op. = 1000szt.",8,null,{"v":0,"d":"0.00"}]
[null,"6.","Pudełko na końcówki do pipet automatycznych","• zastosowanie: do analiz mikrobiologicznych;\n• ze statywem na końcówki o pojemności 1000 μl ;\n• do wielokrotnej sterylizacji ;\n• kompatybilne do końcówek BRAND                             • długość końcówki - 7 cm, \n• krótki kołnierz - max. 7 mm.",null,null,"szt.",3,null,{"v":0,"d":"0.00"}]
[null,"7.","Końcówki do pipet automatycznych ","• zastosowanie: do analiz mikrobiologicznych \"in vitro\";\n• pojemność do 200 μl;\n• końcówki typu Eppendorf, uniwersalne, żółte lub białe;\n• kompatybilne z pipetą typu Eppendorf.\n",null,null,"op. = 1000szt.",50,null,{"v":0,"d":"0.00"}]
[null,"8.","Końcówki do pipet automatycznych","• kompatybilne z pipetą HTL Discovery Control o pojemności 100 - 1000 µl;\n• pojemność końcówki: 100 -1000 ul;\n• bezbarwne.\n",null,null,"op. = \n250 szt.",1,null,{"v":0,"d":"0.00"}]
[null,"Cena oferty (brutto):",{"$nulls":7},{"$f":"SUM(J10:J17)","v":{"v":0,"d":"0.00"}}]
[null,"*","Należy wpisać nazwę producenta oraz numer katalogowy producenta oferowanego produktu. Niepodanie ww. danych będzie skutkować odrzuceniem oferty, chyba że dane te będą jednoznacznie wynikać z innych dokumentów dołączonych do oferty."]
[null,"**","Zawiera podatek od towarów i usług (VAT) wg obowiązującej stawki oraz koszty wszystkich świadczeń niezbędnych do wykonania zamówienia, w szczególności koszty transportu, ubezpieczenia, opakowania (także kaucjonowanego) itp."]
[]
[null,"Wymagania dodatkowe:"]
[]
[null,"1.","Miejsce dostawy:  \n","WSSE Krakowie  ul. Prądnicka 76, 31-202 Kraków - dla poz. 1, 5-8"]
[{"$nulls":3},"WSSE Oddział Laboratoryjny w Tarnowie  ul. Mościckiego 10,  33-100 Tarnów - dla poz. 2, 4"]
[{"$nulls":3},"WSSE Oddział Laboratoryjny w Wadowicach  ul. Teatralna 2, 34-100 Wadowice - Dla poz. 3\n"]

{"sheet":"Część 13","index":13,"n_rows":23,"n_cols":10,"rows_kept":23,"merged":[[0,6,0,9],[2,0,2,9],[3,0,3,9],[4,0,4,9],[6,1,8,1],[6,2,8,2],[6,3,8,3],[6,4,6,5],[6,6,8,6],[6,7,8,7],[6,8,8,8],[6,9,8,9],[7,4,8,4],[7,5,8,5],[14,1,14,8],[15,2,15,9],[16,2,16,9],[17,2,17,9]]}
[null,null,{"$f":"'Część 01'!$C$1","v":"AGZ.272.7.2025"},{"$nulls":3},"Załącznik 1A do SWZ"]
[]
["OPIS PRZEDMIOTU ZAMÓWIENIA - KALKULACJA CENY OFERTY"]
[{"$f":"MID(CELL(\"nazwa_pliku\",A1),FIND(\"]\",CELL(\"nazwa_pliku\",A1),1)+1,100)","v":"Część 13"}]
["Końcówki do pipet Eppendorf"]
[{"$f":"HYPERLINK(\"#'Suma'!A1\",\"wstecz\")","v":"wstecz"}]
[null,"L.p.","Przedmiot zamówienia","Szczegółowy opis","Opis oferowanego produktu",null,"Jednostka miary","Ilość","Cena jednostkowa brutto [zł] **","Wartość brutto [zł] "]
[{"$nulls":4},"Producent*","Nr katalogowy producenta*"]
[]
[null,"1.","Końcówki do pipet Eppendorfa 100-5000µl","np. producent: Eppendorf \nnr kat. 0030000978 \nlub produkt równoważny***\n• końcówki do pipety elektronicznej Eppendorf o możliwości dozowania cieczy od 100 do 5000 µl;\n• typ ep T.I.P.S. \n• długość 120 mm;\n• pakowane w woreczki z możliwością wielokrotnego zamykania.\n",null,null,"op. = 500szt.",2,null,{"$f":"H10*I10","v":{"v":0,"d":"0.00"}}]
[null,2,"Końcówki do pipet Eppendorfa 2-200µl","np. producent: Eppendorf \nnr kat. 0030000889\nlub produkt równoważny***\n• końcówki do pipety elektronicznej Eppendorf o możliwości dozowania cieczy od 2 do 200 µl;                                                                         • typ ep T.I.P.S.; \n• długość 53 mm;\n• nadające się do wąskich i głębokich naczyń;\n• pakowane w woreczki z możliwością wielokrotnego zamykania.                                 \n\n",null,null,"op. = 2x500szt.",1,null,{"$f":"H11*I11","v":{"v":0,"d":"0.00"}}]
[null,3,"Końcówki do pipet Eppendorfa 1000-10000µl","np. producent: Eppendorf \nnr kat. 0030000781 \nlub produkt równoważny***\n• końcówki do pipety elektronicznej Eppendorf o możliwości dozowania cieczy od 500 do 10000 µl;                                                                         • typ ep T.I.P.S.; \n• długość 243 mm;\n• nadające się do wąskich i głębokich naczyń;\n• pakowane w woreczki z możliwością wielokrotnego zamykania.     ",null,null,"op. = 200szt.",4,null,{"v":0,"d":"0.00"}]
[null,4,"Końcówki do pipet Eppendorfa 1000-1000µl","np. producent: Eppendorf \nnr kat. 0030000781 \nlub produkt równoważny***\n• końcówki do pipety elektronicznej Eppendorf o możliwości dozowania cieczy od 1000 do 10000 µl;                                                                         • typ ep T.I.P.S.; \n• długość 243 mm;\n• nadające się do wąskich i głębokich naczyń;\n• pakowane w woreczki z możliwością wielokrotnego zamykania.                                 ",null,null,"op. = 200szt.",2,null,{"v":0,"d":"0.00"}]
[null,5,"Końcówki do pipet Eppendorfa 50-1000µl","np. producent: Eppendorf \nnr kat. 0030000919 \nlub produkt równoważny***\n• końcówki do pipety elektronicznej Eppendorf z możliwością dozowania cieczy od 50-1000 µl;\n• typ ep T.I.P.S.;\n• koloru niebieskiego;\n• długość 71 mm;\n• pakowane w woreczki z możliwością wielokrotnego zamykania                             \n",null,null,"op. = 2x500szt.",6,null,{"v":0,"d":"0.00"}]
[null,"Cena oferty (brutto):",{"$nulls":7},{"$f":"SUM(J10:J14)","v":{"v":0,"d":"0.00"}}]
[null,"*","Należy wpisać nazwę producenta oraz numer katalogowy producenta oferowanego produktu. Niepodanie ww. danych będzie skutkować odrzuceniem oferty, chyba że dane te będą jednoznacznie wynikać z innych dokumentów dołączonych do oferty."]
[null,"**","Zawiera podatek od towarów i usług (VAT) wg obowiązującej stawki oraz koszty wszystkich świadczeń niezbędnych do wykonania zamówienia, w szczególności koszty transportu, ubezpieczenia, opakowania (także kaucjonowanego) itp."]
[null,"***","Wykonawca oferujący produkt innego producenta, o innym numerze katalogowym niż wskazany jako przykład zobowiązany jest dostarczyć dokumenty potwierdzające równoważność oferowanego produktu z wymaganiami przedstawionymi w tabeli w języku polskim lub angielskim. "]
[]
[null,"Wymagania dodatkowe:"]
[]
[null,"1.","Miejsce dostawy:","WSSE Kraków ul. Prądnicka 76, 31-202 Kraków dla poz. 1-3, 5"]
[{"$nulls":3},"WSSE Oddział Laboratoryjny w Tarnowie  ul. Mościckiego 10,  33-100 Tarnów - dla poz. 4"]

{"sheet":"Część 14","index":14,"n_rows":23,"n_cols":10,"rows_kept":23,"merged":[[0,6,0,9],[2,0,2,9],[3,0,3,9],[4,0,4,9],[6,1,8,1],[6,2,8,2],[6,3,8,3],[6,4,6,5],[6,6,8,6],[6,7,8,7],[6,8,8,8],[6,9,8,9],[7,4,8,4],[7,5,8,5],[15,1,15,8],[16,2,16,9],[17,2,17,9],[18,2,18,9]]}
[null,null,{"$f":"'Część 01'!$C$1","v":"AGZ.272.7.2025"},{"$nulls":3},"Załącznik 1A do SWZ"]
[]
["OPIS PRZEDMIOTU ZAMÓWIENIA - KALKULACJA CENY OFERTY"]
[{"$f":"MID(CELL(\"nazwa_pliku\",A1),FIND(\"]\",CELL(\"nazwa_pliku\",A1),1)+1,100)","v":"Część 14"}]
["Strzykawki jednorazowe"]
[{"$f":"HYPERLINK(\"#'Suma'!A1\",\"wstecz\")","v":"wstecz"}]
[null,"L.p.","Przedmiot zamówienia","Szczegółowy opis","Opis oferowanego produktu",null,"Jednostka miary***","Ilość***","Cena jednostkowa brutto [zł] **","Wartość brutto [zł] "]
[{"$nulls":4},"Producent*","Nr katalogowy producenta*"]
[]
[null,"1.","Strzykawka dwuczęściowa typu Luer","• pojemność 2 mL;\n• korpus strzykawki - polipropylen;\n• tłok strzykawki - polietylen, bez gumy;\n• końcówka typu Luer;\n• jednorazowego użytku;\n• opakowanie jednorazowe typu blister pack;\n• podwójna kryza ograniczająca wysuwanie się tłoka,\n• pakowane w opakowania po 50 lub 100 szt,\n• wymagana ilość: 500 szt\n",{"$nulls":5},{"$f":"H10*I10","v":{"v":0,"d":"0.00"}}]
[null,"2.","Strzykawka dwuczęściowa typu Luer","• pojemność 20  mL\n• korpus strzykawki - polipropylen,\n• tłok strzykawki - polietylen, bez gumy,\n• ekscentryczne położenie stożka Luer,\n• jednorazowego użytku, \n• opakowanie jednorazowe typu blister pack,\n• podwójna kryza ograniczająca wysuwanie się tłoka,\n• czytelna i niezmywalna skala w kolorze czarnym.\n• pakowane w opakowania po 50 lub 100 szt,\n• wymagana ilość: 800 szt",{"$nulls":5},{"$f":"H11*I11","v":{"v":0,"d":"0.00"}}]
[null,"3.","Strzykawka dwuczęściowa typu Luer","• pojemność 10 mL;\n• korpus strzykawki - polipropylen;\n• tłok strzykawki - polietylen, bez gumy;\n• końcówka typu Luer;\n• jednorazowego użytku;\n• opakowanie jednorazowe typu blister pack;\n• podwójna kryza ograniczająca wysuwanie się tłoka,\n• pakowane w opakowania po 50 lub 100 szt,\n• wymagana ilość:  100 szt\n",{"$nulls":5},{"v":0,"d":"0.00"}]
[null,"4.","Strzykawki jednorazowe o pojemności 10 ml","• pojemność 10 ml\n• przeźroczyste\n• końcówka typu luer, pasująca do standardowych igieł\n• tłok z końcówką gumową,\n• pakowane w opakowania po 50 lub 100 szt,\n• wymagana ilość: 200 szt.\n",{"$nulls":5},{"v":0,"d":"0.00"}]
[null,"4.","Igły do strzykawek jednorazowych typu Luer","• wymiary igły: \n- średnica 1,2 do 1,6 mm;                                  \n- długość 40 mm.\n",null,null,"op.= 100 szt",5,null,{"v":0,"d":"0.00"}]
[null,"5.","Igły do strzykawek jednorazowych typu Luer","• końcówka typu luer\n• wymiar igły: \n - grubość: min. 0,7 mm\n - długość: min. 50 mm,\n• pakowane w opakowania po 50 lub 100 szt,\n• wymagana ilość:  200 szt.\n",{"$nulls":5},{"v":0,"d":"0.00"}]
[null,"Cena oferty (brutto):",{"$nulls":7},{"$f":"SUM(J10:J15)","v":{"v":0,"d":"0.00"}}]
[null,"*","Należy wpisać nazwę producenta oraz numer katalogowy producenta oferowanego produktu. Niepodanie ww. danych będzie skutkować odrzuceniem oferty, chyba że dane te będą jednoznacznie wynikać z innych dokumentów dołączonych do oferty."]
[null,"**","Zawiera podatek od towarów i usług (VAT) wg obowiązującej stawki oraz koszty wszystkich świadczeń niezbędnych do wykonania zamówienia, w szczególności koszty transportu, ubezpieczenia, opakowania (także kaucjonowanego) itp."]
[null,"***","Należy wpisać odpowiednio jednostkę miary i ilość oferowanych jednostek miary.                                                                                                                                                             UWAGA: Przy wskazaniu jako jednostki miary - \"opakowanie\" należy wpisać ile sztuk jest zawartych w opakowaniu, np. opakowanie = 100 sztuk.\nJako jednostkę miary należy wskazać opakowanie, które zostanie wycenione w kolumnie \"cena jednostkowa brutto\" i będzie możliwym zrealizowanie zamówienia na takie pojedyńcze opakowanie."]
[]
[null,"Wymagania dodatkowe:"]
[]
[null,"1.","Miejsce dostawy: \n","WSSE Kraków  ul. Prądnicka 76, 31-202 Kraków \n"]

{"sheet":"Część 15","index":15,"n_rows":17,"n_cols":10,"rows_kept":17,"merged":[[0,6,0,9],[2,0,2,9],[3,0,3,9],[4,0,4,9],[6,1,8,1],[6,2,8,2],[6,3,8,3],[6,4,6,5],[6,6,8,6],[6,7,8,7],[6,8,8,8],[6,9,8,9],[7,4,8,4],[7,5,8,5],[10,1,10,8],[11,2,11,9],[12,2,12,9]]}
[null,null,{"$f":"'Część 01'!$C$1","v":"AGZ.272.7.2025"},{"$nulls":3},"Załącznik 1A do SWZ"]
[]
["OPIS PRZEDMIOTU ZAMÓWIENIA - KALKULACJA CENY OFERTY"]
[{"$f":"MID(CELL(\"nazwa_pliku\",A1),FIND(\"]\",CELL(\"nazwa_pliku\",A1),1)+1,100)","v":"Część 15"}]
["Probówki typu eppendorf  "]
[{"$f":"HYPERLINK(\"#'Suma'!A1\",\"wstecz\")","v":"wstecz"}]
[null,"L.p.","Przedmiot zamówienia","Szczegółowy opis","Opis oferowanego produktu",null,"Jednostka miary","Ilość","Cena jednostkowa brutto [zł] **","Wartość brutto [zł] "]
[{"$nulls":4},"Producent*","Nr katalogowy producenta*"]
[]
[null,1,"Probówki typu eppendorf  1,5 ml","• sterylne, wolne od DNAz, RNA-z i pirogenów;\n• o poj. 1,5 ml;                                                     • typ Safe-Lock\n• z przezroczystego polipropylenu;\n• z dnem stożkowym i płaskim korkiem;\n• autoklawowalne.\n",null,null,"op. = 1000 szt",1,null,{"$f":"H10*I10","v":{"v":0,"d":"0.00"}}]
[null,"Cena oferty (brutto):",{"$nulls":7},{"$f":"SUM(J10:J10)","v":{"v":0,"d":"0.00"}}]
[null,"*","Należy wpisać nazwę producenta oraz numer katalogowy producenta oferowanego produktu. Niepodanie ww. danych będzie skutkować odrzuceniem oferty, chyba że dane te będą jednoznacznie wynikać z innych dokumentów dołączonych do oferty."]
[null,"**","Zawiera podatek od towarów i usług (VAT) wg obowiązującej stawki oraz koszty wszystkich świadczeń niezbędnych do wykonania zamówienia, w szczególności koszty transportu, ubezpieczenia, opakowania (także kaucjonowanego) itp."]
[]
[null,"Wymagania dodatkowe:"]
[]
[null,"1.","Miejsce dostawy:","WSSE w Krakowie  ul. Prądnicka 76, 31-202 Kraków "]

{"sheet":"Część 16","index":16,"n_rows":24,"n_cols":10,"rows_kept":24,"merged":[[0,4,0,7],[2,0,2,9],[3,0,3,9],[4,0,4,9],[6,1,8,1],[6,2,8,2],[6,3,8,3],[6,4,6,5],[6,6,8,6],[6,7,8,7],[6,8,8,8],[6,9,8,9],[7,4,8,4],[7,5,8,5],[14,1,14,7],[15,2,15,9],[16,2,16,9],[17,2,17,9],[21,2,21,3]]}
[null,null,{"$f":"'Część 01'!$C$1","v":"AGZ.272.7.2025"}]
[]
["OPIS PRZEDMIOTU ZAMÓWIENIA - KALKULACJA CENY OFERTY"]
[{"$f":"MID(CELL(\"nazwa_pliku\",A1),FIND(\"]\",CELL(\"nazwa_pliku\",A1),1)+1,100)","v":"Część 16"}]
["Ezy polistyrenowe, paleczki i głaszczki"]
[{"$f":"HYPERLINK(\"#'Suma'!A1\",\"wstecz\")","v":"wstecz"}]
[null,"L.p.","Przedmiot zamówienia","Szczegółowy opis","Opis oferowanego produktu",null,"Jednostka miary***","Ilość***","Cena jednostkowa brutto [zł] **","Wartość brutto [zł] "]
[{"$nulls":4},"Producent*","Nr katalogowy producenta*"]
[]
[null,"1.","Eza polistyrenowa","• zastosowanie: do analiz mikrobiologicznych \"in vitro\"; \n• pojemność oczka: 1 µl; \n• jednorazowego użytku;\n• jałowa; \n• polistyrenowa; \n• twarda;\n• pakowana w odrębne torebki po 10 - 25 sztuk \n• wymagana ilość: 7 000 sztuk\n",{"$nulls":5},{"$f":"H10*I10","v":{"v":0,"d":"0.00"}}]
[null,"2.","Eza polistyrenowa","• zastosowanie: do analiz mikrobiologicznych \"in vitro\"; \n• pojemność oczka: ok. 1 µl; \n• jednorazowego użytku;\n• jałowa; \n• polistyrenowa; \n• twarda;\n• pakowana w odrębne torebki po 10 - 25 sztuk \n• wymagana ilość: 7 000 sztuk",{"$nulls":5},{"$f":"H11*I11","v":{"v":0,"d":"0.00"}}]
[null,"3.","Eza polistyrenowa","• zastosowanie: do diagnostyki mikrobiologicznej; \n• pojemność oczka: 10 µl; \n• jednorazowego użytku;\n• jałowa; \n• polistyrenowa;                                     \n• twarda;\n• pakowana w odrębne torebki po 10 - 25 sztuk \n• wymagana ilość:  35 000 sztuk",{"$nulls":5},{"v":0,"d":"0.00"}]
[null,"4.","Głaszczki plastikowe","• zastosowanie: do diagnostyki mikrobiologicznej; \n• jednorazowego użytku;\n• sterylne, \n• typu L, \n• pakowana w odrębne torebki po 5 - 10 sztuk \n•  wymagana ilość: 1 400 sztuk",{"$nulls":5},{"v":0,"d":"0.00"}]
[null,"5.","Głaszczki plastikowe","• zastosowanie: do diagnostyki mikrobiologicznej; \n• jednorazowego użytku;\n• sterylne, \n• typu L, \n• pakowana w odrębne torebki po 5 - 10 sztuk\n•  wymagana ilość: 700 sztuk",{"$nulls":5},{"$f":"H14*I14","v":{"v":0,"d":"0.00"}}]
[null,"Cena oferty (brutto):",{"$nulls":7},{"$f":"SUM(J10:J14)","v":{"v":0,"d":"0.00"}}]
[null,"*","Należy wpisać nazwę producenta oraz numer katalogowy producenta oferowanego produktu. Niepodanie ww. danych będzie skutkować odrzuceniem oferty, chyba że dane te będą jednoznacznie wynikać z innych dokumentów dołączonych do oferty."]
[null,"**","Zawiera podatek od towarów i usług (VAT) wg obowiązującej stawki oraz koszty wszystkich świadczeń niezbędnych do wykonania zamówienia, w szczególności koszty transportu, ubezpieczenia, opakowania (także kaucjonowanego) itp."]
[null,"***","Należy wpisać odpowiednio jednostkę miary i ilość oferowanych jednostek miary.                                                                                                                                                             UWAGA: Przy wskazaniu jako jednostki miary - \"opakowanie\" należy wpisać ile sztuk jest zawartych w opakowaniu, np. opakowanie = 20 sztuk.\nJako jednostkę miary należy wskazać opakowanie, które zostanie wycenione w kolumnie \"cena jednostkowa brutto\" i będzie możliwym zrealizowanie zamówienia na takie pojedyńcze opakowanie."]
[]
[null,"Wymagania dodatkowe:"]
[]
[null,"1.","Dla poz. 1-3 do dostawy wymagany certyfikat kalibracji oczka."]
[null,"2.","Miejsce dostawy:\n","WSSE w Krakowie  ul. Prądnicka 76, 31-202 Kraków - dla poz. 1, 3, 4"]
[{"$nulls":3},"WSSE Oddział Laboratoryjny w Tarnowie ul. Mościckiego 10, 33-100 Tarnów - dla poz. 2, 5"]

{"sheet":"Część 17","index":17,"n_rows":26,"n_cols":10,"rows_kept":26,"merged":[[0,6,0,9],[2,0,2,9],[3,0,3,9],[4,0,4,9],[6,1,8,1],[6,2,8,2],[6,3,8,3],[6,4,6,5],[6,6,8,6],[6,7,8,7],[6,8,8,8],[6,9,8,9],[7,4,8,4],[7,5,8,5],[14,1,14,8],[15,2,15,9],[16,2,16,9],[17,2,17,9],[22,2,22,9],[23,2,23,9],[24,3,24,9]]}
[null,null,{"$f":"'Część 01'!$C$1","v":"AGZ.272.7.2025"},{"$nulls":3},"Załącznik 1A do SWZ"]
[]
["OPIS PRZEDMIOTU ZAMÓWIENIA - KALKULACJA CENY OFERTY"]
[{"$f":"MID(CELL(\"nazwa_pliku\",A1),FIND(\"]\",CELL(\"nazwa_pliku\",A1),1)+1,100)","v":"Część 17"}]
["Płytki Petriego"]
[{"$f":"HYPERLINK(\"#'Suma'!A1\",\"wstecz\")","v":"wstecz"}]
[null,"L.p.","Przedmiot zamówienia","Szczegółowy opis","Opis oferowanego produktu",null,"Jednostka miary***","Ilość***","Cena jednostkowa brutto [zł] **","Wartość brutto [zł] "]
[{"$nulls":4},"Producent*","Nr katalogowy producenta*"]
[]
[null,"1.","Płytki Petriego","• plastikowe;\n• średnica 55-60 mm;\n• wysokość 14-16 mm;\n• jednorazowe;\n• sterylne (jałowe);\n• bez żeber wentylacyjnych;\n• nie dzielone\n• pakowane w odrębne torebki/rękawy po 10-25 szt. w torebce/rękawie. \n• wymagana ilość:  2 000 szt. \n",{"$nulls":5},{"$f":"H10*I10","v":{"v":0,"d":"0.00"}}]
[null,"2.","Płytki Petriego","• plastikowe;\n• średnica 55-60 mm;\n• wysokość 14-16 mm;\n• jednorazowe;\n• sterylne (jałowe);\n• z żebrami wentylacyjnymi;\n• nie dzielone;\n• pakowane w odrebne torebki/rękawy po 10-25 szt. w torebce/rękawie.\n• wymagana ilość:  1 000 szt.\n",{"$nulls":5},{"$f":"H11*I11","v":{"v":0,"d":"0.00"}}]
[null,"3.","Płytki Petriego","• plastikowe;\n• średnica 55-60 mm;\n• wysokość 14-16 mm;\n• jednorazowe;\n• sterylne (jałowe);\n• bez żeber wentylacyjnych;\n• nie dzielone;\n• pakowane w odrebne torebki/rękawy po 10-25 szt. w torebce/rękawie.\n• wymagana ilość: 4 300 szt.\n",{"$nulls":5},{"v":0,"d":"0.00"}]
[null,"4.","Płytki Petriego","• plastikowe;\n• średnica 90-92 mm;\n• wysokość 14-16,5 mm;\n• jednorazowe;\n• sterylne (jałowe);\n• bez żeber wentylacyjnych;\n• nie dzielone\n• pakowane w odrębne torebki/rękawy po 10-25 szt. w torebce/rękawie.\n• wymagana ilość:  5 000 szt.\n",{"$nulls":5},{"v":0,"d":"0.00"}]
[null,"5.","Płytki Petriego","• plastikowe;\n• średnica 90-92 mm;\n• wysokość 14-16,5 mm;\n• jednorazowe;\n• sterylne (jałowe);\n• bez żeber wentylacyjnych;\n• nie dzielone\n• pakowane w odrębne torebki/rękawy po 10-25 szt. w torebce/rękawie.\n• wymagana ilość:  80 000 szt.\n",{"$nulls":5},{"v":0,"d":"0.00"}]
[null,"Cena oferty (brutto):",{"$nulls":7},{"$f":"SUM(J10:J14)","v":{"v":0,"d":"0.00"}}]
[null,"*","Należy wpisać nazwę producenta oraz numer katalogowy producenta oferowanego produktu. Niepodanie ww. danych będzie skutkować odrzuceniem oferty, chyba że dane te będą jednoznacznie wynikać z innych dokumentów dołączonych do oferty."]
[null,"**","Zawiera podatek od towarów i usług (VAT) wg obowiązującej stawki oraz koszty wszystkich świadczeń niezbędnych do wykonania zamówienia, w szczególności koszty transportu, ubezpieczenia, opakowania (także kaucjonowanego) itp."]
[null,"***","Należy wpisać odpowiednio jednostkę miary i ilość oferowanych jednostek miary.                                                                                                                                                             UWAGA: Przy wskazaniu jako jednostki miary - \"opakowanie\" należy wpisać ile sztuk jest zawartych w opakowaniu, np. opakowanie = 20 sztuk.\nJako jednostkę miary należy wskazać opakowanie, które zostanie wycenione w kolumnie \"cena jednostkowa brutto\" i będzie możliwym zrealizowanie zamówienia na takie pojedyńcze opakowanie."]
[]
[null,"Wymagania dodatkowe:"]
[]
[null,"1.","Do dostawy wymagany certyfikat jakości."]
[null,"2.","Zamawiający wymaga, aby opakowanie jednostkowe zawierało od 10 do 25 sztuk. \nZamawiający dopuszcza zaoferowanie niepełnego opakowania jednostkowego, przy zachowaniu sterylności, tak aby pokryć w pełni zapotrzebowanie określone w tabeli. "]
[null,"3.","Produkt wymieniony w poz. 1-4 nie musi być wyrobem medycznym w rozumieniu ustawy z dn. 20 maja 2010 r o wyrobach medycznych. Jednocześnie Zamawiający dopuszcza taką możliwość."]
[null,"4.","Miejsce dostawy: ","WSSE w Krakowie  ul. Prądnicka 76, 31-202 Kraków - dla poz. 1,2, 5\n\n"]
[{"$nulls":3},"WSSE Oddział Laboratoryjny w Tarnowie  ul. Mościckiego 10,  33-100 Tarnów - dla poz. 3, 4"]

{"sheet":"Część 18","index":18,"n_rows":22,"n_cols":10,"rows_kept":22,"merged":[[0,6,0,9],[2,0,2,9],[3,0,3,9],[4,0,4,9],[6,1,8,1],[6,2,8,2],[6,3,8,3],[6,4,6,5],[6,6,8,6],[6,7,8,7],[6,8,8,8],[6,9,8,9],[7,4,8,4],[7,5,8,5],[11,1,11,8],[12,2,12,9],[13,2,13,9],[14,2,14,9],[18,2,18,9]]}
[null,null,{"$f":"'Część 01'!$C$1","v":"AGZ.272.7.2025"},{"$nulls":3},"Załącznik 1A do SWZ - po zmianie z dnia 15.05.2025 r."]
[]
["OPIS PRZEDMIOTU ZAMÓWIENIA - KALKULACJA CENY OFERTY"]
[{"$f":"MID(CELL(\"nazwa_pliku\",A1),FIND(\"]\",CELL(\"nazwa_pliku\",A1),1)+1,100)","v":"Część 18"}]
["Wymazówki z podłożem transportowym AMIES "]
[{"$f":"HYPERLINK(\"#'Suma'!A1\",\"wstecz\")","v":"wstecz"}]
[null,"L.p.","Przedmiot zamówienia","Szczegółowy opis","Opis oferowanego produktu",null,"Jednostka miary***","Ilość ***","Cena jednostkowa brutto [zł] **","Wartość brutto [zł] "]
[{"$nulls":4},"Producent*","Nr katalogowy producenta*"]
[]
[null,"1.","Wymazówki z podłożem transportowym AMIES ","• zastosowanie: do analiz mikrobiologicznych \"in vitro\"; \n• wymazówka z tworzywa sztucznego wymiary: ø12,5-13,0 mm na dł. 150-165 mm, z wacikiem wiskozowym \n• karbowany niebieski korek;\n• etykieta ; \n• sterylne; \n• podłoże Amies (zapewnia prawidłową żywotność mikroorganizamów do 72 godzin);\n• pakowane indywidualnie.\n• wymagana ilość: 50 000 sztuk\n",{"$nulls":5},{"$f":"H10*I10","v":{"v":0,"d":"0.00"}}]
[null,"2.","Wymazówki z podłożem transportowym AMIES z węglem","• zastosowanie: do analiz mikrobiologicznych \"in vitro\"; \n• wymazówka z tworzywa sztucznego wymiary: ø12,5-13,0 mm na dł. 150-165 mm, z wacikiem wiskozowym \n• karbowany niebieski korek;\n• etykieta ; \n• sterylne; \n• podłoże Amies z weglem (zapewnia prawidłową żywotność mikroorganizamów do 72 godzin);\n• pakowane indywidualnie.",null,null,"op.=\n100szt",1,null,{"$f":"H11*I11","v":{"v":0,"d":"0.00"}}]
[null,"Cena oferty (brutto):",{"$nulls":7},{"$f":"SUM(J10:J11)","v":{"v":0,"d":"0.00"}}]
[null,"*","Należy wpisać nazwę producenta oraz numer katalogowy producenta oferowanego produktu. Niepodanie ww. danych będzie skutkować odrzuceniem oferty, chyba że dane te będą jednoznacznie wynikać z innych dokumentów dołączonych do oferty."]
[null,"**","Zawiera podatek od towarów i usług (VAT) wg obowiązującej stawki oraz koszty wszystkich świadczeń niezbędnych do wykonania zamówienia, w szczególności koszty transportu, ubezpieczenia, opakowania (także kaucjonowanego) itp."]
[null,"***","Należy wpisać odpowiednio jednostkę miary i ilość oferowanych jednostek miary.                                                                                                                                                             UWAGA: Przy wskazaniu jako jednostki miary - \"opakowanie\" należy wpisać ile sztuk jest zawartych w opakowaniu, np. opakowanie = 50 sztuk.\nJako jednostkę miary należy wskazać opakowanie, które zostanie wycenione w kolumnie \"cena jednostkowa brutto\", co umożliwi zrealizowanie zamówienia na takie pojedyncze opakowanie."]
[]
[null,"Wymagania dodatkowe:"]
[]
[null,"1.","Produkty wymienione w tabeli mają być wyrobem medycznym w rozumieniu ustawy z dn. 07 kwietnia 2022 r. o wyrobach medycznych."]
[null,"2.","Instrukcja użytkowania w języku polskim lub w formie zharmonizowanych symboli na każdym opakowaniu indywidulanym."]
[null,"3.","Wymagany okres ważności: min. 18 miesięcy od dostawy."]
[null,"4.","Miejsce dostawy:\n","WSSE Krakowie  ul. Prądnicka 76, 31-202 Kraków "]

{"sheet":"Część 19","index":19,"n_rows":24,"n_cols":10,"rows_kept":24,"merged":[[0,6,0,9],[2,0,2,9],[3,0,3,9],[4,0,4,9],[6,1,8,1],[6,2,8,2],[6,3,8,3],[6,4,6,5],[6,6,8,6],[6,7,8,7],[6,8,8,8],[6,9,8,9],[7,4,8,4],[7,5,8,5],[13,1,13,8],[14,2,14,9],[15,2,15,9],[19,2,19,9],[20,2,20,9]]}
[null,null,{"$f":"'Część 01'!$C$1","v":"AGZ.272.7.2025"},{"$nulls":3},"Załącznik 1A do SWZ"]
[]
["OPIS PRZEDMIOTU ZAMÓWIENIA - KALKULACJA CENY OFERTY"]
[{"$f":"MID(CELL(\"nazwa_pliku\",A1),FIND(\"]\",CELL(\"nazwa_pliku\",A1),1)+1,100)","v":"Część 19"}]
["System do przechowywania mikroorganizmów w stanie zamrożonym"]
[{"$f":"HYPERLINK(\"#'Suma'!A1\",\"wstecz\")","v":"wstecz"}]
[null,"L.p.","Przedmiot zamówienia","Szczegółowy opis","Opis oferowanego produktu",null,"Jednostka miary","Ilość","Cena jednostkowa brutto [zł] **","Wartość brutto [zł] "]
[{"$nulls":4},"Producent*","Nr katalogowy producenta*"]
[]
[null,"1.","System do przechowywania mikroorganizmów w stanie zamrożonym ","• zastosowanie: do długotrwałego przechowywania szczepów bakteryjnych w temperaturze poniżej - 70 0C;\n• skład zestaw:                                                                                         \n  - 80 sztuk sterylnych fiolek z płynem odżywczym;\n  - Mix 4 lub 5 kolorów zakrętek/koralików.  ",null,null," zestaw",1,null,{"$f":"H10*I10","v":{"v":0,"d":"0.00"}}]
[null,"2.","System do przechowywania mikroorganizmów w stanie zamrożonym ","• zastosowanie: do długotrwałego przechowywania szczepów bakteryjnych w temperaturze poniżej - 70 0C;\n• skład zestaw:                                                                                         \n  - 80 sztuk sterylnych fiolek z płynem odżywczym;\n  - Mix 4 lub 5 kolorów zakrętek/koralików.  ",null,null," zestaw",1,null,{"$f":"H11*I11","v":{"v":0,"d":"0.00"}}]
[null,"3.","System do przechowywania mikroorganizmów w stanie zamrożonym ","• zastosowanie: do długotrwałego przechowywania szczepów bakteryjnych w temperaturze poniżej - 70 0C;\n• skład zestaw:                                                                                         \n  - 80 sztuk sterylnych fiolek z płynem odżywczym;\n  - Mix 4 lub 5 kolorów zakrętek/koralików.  ",null,null,"zestaw",1,null,{"v":0,"d":"0.00"}]
[null,"4.","Pudełko chłodzące Cryo-Safe™","• Wkład przeznaczony na min 12 a max. 20 probówek o poj. 1,5 ml\n• Wnętrze pudełka wypełnione specjalnym materiałem zapewniającym utrzymanie niskiej temperatury;\n• Po wyjęciu z zamrażarki przez ok. 1,5h utrzymuje się temperatura -15°C.\n",null,null,"szt.",1,null,{"v":0,"d":"0.00"}]
[null,"Cena oferty (brutto):",{"$nulls":7},{"$f":"SUM(J10:J13)","v":{"v":0,"d":"0.00"}}]
[null,"*","Należy wpisać nazwę producenta oraz numer katalogowy producenta oferowanego produktu. Niepodanie ww. danych będzie skutkować odrzuceniem oferty, chyba że dane te będą jednoznacznie wynikać z innych dokumentów dołączonych do oferty."]
[null,"**","Zawiera podatek od towarów i usług (VAT) wg obowiązującej stawki oraz koszty wszystkich świadczeń niezbędnych do wykonania zamówienia, w szczególności koszty transportu, ubezpieczenia, opakowania (także kaucjonowanego) itp."]
[]
[null,"Wymagania dodatkowe:"]
[]
[null,"1.","Dla poz. 1-3 do dostawy wymagany certyfikat jakości /świadectwo kontroli jakości lub inny dokument potwierdzający spełnienie wymagań w języku polskim lub angielskim w formie papierowej lub dostępny w formie elektronicznej w miejscu wskazanym przez wykonawcę (adres strony www). "]
[null,"2.","Dla poz. 1-3 Wymagany okres ważności:  min. 12 miesięcy od daty dostawy. "]
[null,"3.","Miejsce dostawy:\n","WSSE Kraków  ul. Prądnicka 76, 31-202 Kraków - dla poz. 1, 4\n"]
[{"$nulls":3},"WSSE Oddział Laboratoryjny w Tarnowie  ul. Mościckiego 10,  33-100 Tarnów - dla poz. 3"]
[{"$nulls":3},"WSSE Oddział Laboratoryjny w Wadowicach, ul.Teatralna 2, 34-100 Wadowice - dla poz. 2"]

{"sheet":"Część 20","index":20,"n_rows":18,"n_cols":10,"rows_kept":18,"merged":[[0,6,0,9],[2,0,2,9],[3,0,3,9],[4,0,4,9],[6,1,8,1],[6,2,8,2],[6,3,8,3],[6,4,6,5],[6,6,8,6],[6,7,8,7],[6,8,8,8],[6,9,8,9],[7,4,8,4],[7,5,8,5],[10,1,10,8],[11,2,11,9],[12,2,12,9]]}
[null,null,{"$f":"'Część 01'!$C$1","v":"AGZ.272.7.2025"},{"$nulls":3},"Załącznik 1A do SWZ"]
[]
["OPIS PRZEDMIOTU ZAMÓWIENIA - KALKULACJA CENY OFERTY"]
[{"$f":"MID(CELL(\"nazwa_pliku\",A1),FIND(\"]\",CELL(\"nazwa_pliku\",A1),1)+1,100)","v":"Część 20"}]
["Zestaw lejków plastikowych oraz filtrów do filtracji membranowej "]
[{"$f":"HYPERLINK(\"#'Suma'!A1\",\"wstecz\")","v":"wstecz"}]
[null,"L.p.","Przedmiot zamówienia","Szczegółowy opis","Opis oferowanego produktu",null,"Jednostka miary","Ilość","Cena jednostkowa brutto [zł] **","Wartość brutto [zł] "]
[{"$nulls":4},"Producent*","Nr katalogowy producenta*"]
[]
[null,"1.","Zestaw lejków plastikowych oraz filtrów do filtracji membranowej","• lejki: plastikowe; objętość 250 ml; kompatybilne z zestawem trójstanowiskowym Microfil Millipore;\n• Filtry: średnica 47 mm; o średnicy porów 0,45 μm; czarne, kratkowane; zawierają estry celulozowe.\n",null,null,"op. = 150 zestawów\n (lejek+ filtr)",1,null,{"$f":"H10*I10","v":{"v":0,"d":"0.00"}}]
[null,"Cena oferty (brutto):",{"$nulls":7},{"$f":"SUM(J10:J10)","v":{"v":0,"d":"0.00"}}]
[null,"*","Należy wpisać nazwę producenta oraz numer katalogowy producenta oferowanego produktu. Niepodanie ww. danych będzie skutkować odrzuceniem oferty, chyba że dane te będą jednoznacznie wynikać z innych dokumentów dołączonych do oferty."]
[null,"**","Zawiera podatek od towarów i usług (VAT) wg obowiązującej stawki oraz koszty wszystkich świadczeń niezbędnych do wykonania zamówienia, w szczególności koszty transportu, ubezpieczenia, opakowania (także kaucjonowanego) itp."]
[]
[null,"Wymagania dodatkowe:"]
[]
[null,"1.","Wymagany okres ważności: min.18 miesięcy od daty dostawy."]
[null,"2.","Miejsce dostawy:\n","WSSE Kraków  ul. Prądnicka 76, 31-202 Kraków\n"]

{"sheet":"Część 21","index":21,"n_rows":27,"n_cols":10,"rows_kept":27,"merged":[[0,6,0,9],[2,0,2,9],[3,0,3,9],[4,0,4,9],[6,1,8,1],[6,2,8,2],[6,3,8,3],[6,4,6,5],[6,6,8,6],[6,7,8,7],[6,8,8,8],[6,9,8,9],[7,4,8,4],[7,5,8,5],[15,1,15,8],[16,2,16,9],[17,2,17,9],[21,2,21,9]]}
[null,null,{"$f":"'Część 01'!$C$1","v":"AGZ.272.7.2025"},{"$nulls":3},"Załącznik 1A do SWZ - po zmianie z dnia 15.05.2025 r."]
[]
["OPIS PRZEDMIOTU ZAMÓWIENIA - KALKULACJA CENY OFERTY"]
[{"$f":"MID(CELL(\"nazwa_pliku\",A1),FIND(\"]\",CELL(\"nazwa_pliku\",A1),1)+1,100)","v":"Część 21"}]
["Elektroda pehametryczna"]
[{"$f":"HYPERLINK(\"#'Suma'!A1\",\"wstecz\")","v":"wstecz"}]
[null,"L.p.","Przedmiot zamówienia","Szczegółowy opis","Opis oferowanego produktu",null,"Jednostka miary","Ilość","Cena jednostkowa brutto [zł] **","Wartość brutto [zł] "]
[{"$nulls":4},"Producent*","Nr katalogowy producenta*"]
[]
[null,"1.","Elektroda kombinowana pehametryczna szklana","• typ EPS-1 do pehametru CP-511;\n• zastosowanie: do analiz laboratoryjnych do pomiaru pH; \n•zakres temp.pracy 0- min. 70°C ; \n• zakres pomiarów 0 - 14 pH;                                                                                             \n• elektrolit: nasycony r-r KCl;                                           \n• materiał korpusu szkło                                                   \n• długośc kabla 1 m;                                                         \n• wtyk BNC-50;                                                                      \n• wymiary (mm): L-12-14, Φ 12;                                      \n• dołączona buteleczka z nasyconym KCl nakładana na koniec elektrody\n",null,null,"szt.",2,null,{"$f":"H10*I10","v":{"v":0,"d":"0.00"}}]
[null,"2.","Statyw na elektrodę i czujkę temperatury","• statyw samopoziomujący pozwalający na utrzymanie w pionie elektrodę i czujnik temperatury;\n• minimum jedno gniazdo uchwytu statywu o średnicy 16 mm (dla elektrody);\n• minimum jedno gniazdo uchwytu statywu o średnicy 11 mm (dla czujnika temperatury);\n• podstawa statywu obciążona w celu zapewnienia stabilności.\n",null,null,"szt.",1,null,{"$f":"H11*I11","v":{"v":0,"d":"0.00"}}]
[null,"3.","Elektroda pehametryczna\n","• typ EPS-1;\n• zastosowanie: elektroda do pehametru typu CP-411 i CP-551;\n• z nasuwanym pojemnikiem z KCl\n• elektroda wraz ze świadectwem wzorcowania\n",null,null,"szt.",1,null,{"v":0,"d":"0.00"}]
[null,"4.","Elektroda pehametryczna\nProducent: Elmetron\nTYP: EPS-1","• typ EPS-1\n• zastosowanie: Elektroda do pehametru CP-511 \n• elektroda zespolona przeznaczona do pomiarów pH w roztworach wodnych\n• zakres pomiarowy: 0÷14 pH\n• zakres temperatury: 0÷70oC\n• punkt zerowy 7,0 ±0,3 pH \n• półogniwo odniesienia(chlorosrebrowe) Ag/AgCl\n• Elektrolit - 3M KCl\n• Długość korpusu (bez oprawki) 140±5mm\n• Minimalna głębokość zanurzenia 30 mm\n• Typ łącznika - ceramiczny\n• Membrana - szklana, kulista\n• Materiał korpusu : szkło\n• Długość przewodu: ok.1m\n• Wtyczka BNC-50\n• Elektroda wraz ze świadectwem wzorcowania",null,null,"szt.",1,null,{"v":0,"d":"0.00"}]
[null,"5.","Elektroda pehametryczna\nProducent: Hydromet\nTYP: ERH-111","● typ ERH-111\n● zastosowanie: Elektroda do pehametru CP-411 \n● elektroda zespolona przeznaczona do pomiarów pH w roztworach wodnych\n● zakres pomiarowy: 0÷14 pH\n● zakres temperatury: 0÷80oC\n● punkt zerowy 7,0 ±0,5 pH (0±30mV)\n● półogniwo odniesienia(chlorosrebrowe) Ag/AgCl\n● Roztwór odniesienia (niewymienny) nasycony KCl+AgCl\n●Długość korpusu (bez oprawki) 120±5mm\n●Minimalna głębokość zanurzenia 20 mm\n● kształt membrany: cylindryczny\n● materiał korpusu : żywica epoksydowa\n● długość przewodu: ok.1m\n● wtyczka BNC\n● elektroda wraz ze świadectwem wzorcowania",null,null,"szt.",1,null,{"v":0,"d":"0.00"}]
[null,"6.","Elektroda pehametryczna plastykowa  zespolona","• typ EPP-1 \n• zastosowanie: do pehametru  CPI 505 firmy ELMETRON;\n• zakres pomiarowy od 0 do 14 pH.                     \n• zakres temperatury pracy 0-70°C                        \n• punkt zerowy 7,0±0,3 pH                                          \n• typ łącznika/membrana: ceramiczny/szkło        \n• elektrolit: 3,3 M KCl (żel)                                    \n• impedancja: < 120 MΩ (25 °C)                                             \n• wtyk: BNC-50                                                                                    \n• wymiary/długość kabla: L=140 mm, Ø=12 mm/1 m                                                                 \n• Elektroda wraz ze świadectwem wzorcowania\n",null,null,"szt. ",1,null,{"v":0,"d":"0.00"}]
[null,"Cena oferty (brutto):",{"$nulls":7},{"$f":"SUM(J10:J15)","v":{"v":0,"d":"0.00"}}]
[null,"*","Należy wpisać nazwę producenta oraz numer katalogowy producenta oferowanego produktu. Niepodanie ww. danych będzie skutkować odrzuceniem oferty, chyba że dane te będą jednoznacznie wynikać z innych dokumentów dołączonych do oferty."]
[null,"**","Zawiera podatek od towarów i usług (VAT) wg obowiązującej stawki oraz koszty wszystkich świadczeń niezbędnych do wykonania zamówienia, w szczególności koszty transportu, ubezpieczenia, opakowania (także kaucjonowanego) itp."]
[]
[null,"Wymagania dodatkowe:"]
[]
[null,"1.","Poz.1, 3-6 Do dostawy wymagane jest świadectwo wzorcowania zapewniajace zachowanie spójność pomiarowej, wykonane przez akredytowane laboratorium. Wzorcowanie powinno obejmować: nachylenie charakterystyki elektrody, sprawność elektrody oraz wartość punktu zerowego. Wynik wzorcowania podany wraz z max. niepewnością pomiaru ± 1%. Niepewność podana przy poziomie ufności 95% i współczynnik rozszerzenia k=2. "]
[null,"2.","Wymagany okres gwarancji: min. 12 miesięcy od daty dostawy."]
[null,"3.","Do dostawy wymagana instrukcja obsługi  oraz karta gwarancyjna w języku polskim."]
[null,"4.","Miejsce dostawy:","WSSE w Krakowie  ul. Prądnicka 76, 31-202 Kraków - dla poz. 1-3, 5"]
[{"$nulls":3},"WSSE Oddział Laboratoryjny w Tarnowie  ul. Mościckiego 10,  33-100 Tarnów - dla poz. 4"]
[{"$nulls":3},"WSSE Oddział Laboratoryjny w Wadowicach, ul.Teatralna 2, 34-100 Wadowice - dla poz. 6"]

{"sheet":"Część 22","index":22,"n_rows":18,"n_cols":10,"rows_kept":18,"merged":[[0,6,0,9],[2,0,2,9],[3,0,3,9],[4,0,4,9],[6,1,8,1],[6,2,8,2],[6,3,8,3],[6,4,6,5],[6,6,8,6],[6,7,8,7],[6,8,8,8],[6,9,8,9],[7,4,8,4],[7,5,8,5],[11,1,11,8],[12,2,12,9],[13,2,13,9]]}
[null,null,{"$f":"'Część 01'!$C$1","v":"AGZ.272.7.2025"},{"$nulls":3},"Załącznik 1A do SWZ"]
[]
["OPIS PRZEDMIOTU ZAMÓWIENIA - KALKULACJA CENY OFERTY"]
[{"$f":"MID(CELL(\"nazwa_pliku\",A1),FIND(\"]\",CELL(\"nazwa_pliku\",A1),1)+1,100)","v":"Część 22"}]
["Torebki do sterylizacji w autoklawie"]
[{"$f":"HYPERLINK(\"#'Suma'!A1\",\"wstecz\")","v":"wstecz"}]
[null,"L.p.","Przedmiot zamówienia","Szczegółowy opis","Opis oferowanego produktu",null,"Jednostka miary","Ilość","Cena jednostkowa brutto [zł] **","Wartość brutto [zł] "]
[{"$nulls":4},"Producent*","Nr katalogowy producenta*"]
[]
[null,"1.","Torebki do sterylizacji w autoklawie","• Torebki foliowo-papierowe przeznaczone do sterylizacji parą wodną oraz tlenkiem etylenu. \n• Do sterylizowania w autoklawie.\n• Torebki samoprzylepne. \n• Wymiary: 140 mm x 260 mm\n• Produkt posiada znak CE.     \n ",null,null,"op. = 100szt.",6,null,{"$f":"H10*I10","v":{"v":0,"d":"0.00"}}]
[null,"2.","Torebki do sterylizacji w autoklawie","• Torebki foliowo-papierowe przeznaczone do sterylizacji parą wodną oraz tlenkiem etylenu. \n• Do sterylizowania w autoklawie.\n• Torebki samoprzylepne. \n• Wymiary: 70 mm x 230 mm\n• Produkt posiada znak CE.        \n            ",null,null,"op. = 100szt.",6,null,{"$f":"H11*I11","v":{"v":0,"d":"0.00"}}]
[null,"Cena oferty (brutto):",{"$nulls":7},{"$f":"SUM(J10:J11)","v":{"v":0,"d":"0.00"}}]
[null,"*","Należy wpisać nazwę producenta oraz numer katalogowy producenta oferowanego produktu. Niepodanie ww. danych będzie skutkować odrzuceniem oferty, chyba że dane te będą jednoznacznie wynikać z innych dokumentów dołączonych do oferty."]
[null,"**","Zawiera podatek od towarów i usług (VAT) wg obowiązującej stawki oraz koszty wszystkich świadczeń niezbędnych do wykonania zamówienia, w szczególności koszty transportu, ubezpieczenia, opakowania (także kaucjonowanego) itp."]
[]
[null,"Wymagania dodatkowe:"]
[]
[null,"1.","Miejsce dostawy:\n","WSSE Krakowie  ul. Prądnicka 76, 31-202 Kraków "]

{"sheet":"Część 23","index":23,"n_rows":19,"n_cols":10,"rows_kept":19,"merged":[[0,6,0,9],[2,0,2,9],[3,0,3,9],[4,0,4,9],[6,1,8,1],[6,2,8,2],[6,3,8,3],[6,4,6,5],[6,6,8,6],[6,7,8,7],[6,8,8,8],[6,9,8,9],[7,4,8,4],[7,5,8,5],[10,1,10,8],[11,2,11,9],[12,2,12,9],[16,2,16,9]]}
[null,null,{"$f":"'Część 01'!$C$1","v":"AGZ.272.7.2025"},{"$nulls":3},"Załącznik 1A do SWZ"]
[]
["OPIS PRZEDMIOTU ZAMÓWIENIA - KALKULACJA CENY OFERTY"]
[{"$f":"MID(CELL(\"nazwa_pliku\",A1),FIND(\"]\",CELL(\"nazwa_pliku\",A1),1)+1,100)","v":"Część 23"}]
["Pałeczki z wacikiem do wymazów"]
[{"$f":"HYPERLINK(\"#'Suma'!A1\",\"wstecz\")","v":"wstecz"}]
[null,"L.p.","Przedmiot zamówienia","Szczegółowy opis","Opis oferowanego produktu",null,"Jednostka miary","Ilość","Cena jednostkowa brutto [zł] **","Wartość brutto [zł] "]
[{"$nulls":4},"Producent*","Nr katalogowy producenta*"]
[]
[null,"1.","Pałeczki z wacikiem do wymazów","• pałeczka polistyrenowa o wymiarach 2,2-2,5 na 150 ± 5 mm                                                                            \n• z waciekiem wiskozowym                                           \n• jałowa bez podłoża                                                                             \n• pakowana indywidualnie (opakowanie typu blister).\n",null,null,"op.=100 szt",11,null,{"$f":"H10*I10","v":{"v":0,"d":"0.00"}}]
[null,"Cena oferty (brutto):",{"$nulls":7},{"$f":"SUM(J10:J10)","v":{"v":0,"d":"0.00"}}]
[null,"*","Należy wpisać nazwę producenta oraz numer katalogowy producenta oferowanego produktu. Niepodanie ww. danych będzie skutkować odrzuceniem oferty, chyba że dane te będą jednoznacznie wynikać z innych dokumentów dołączonych do oferty."]
[null,"**","Zawiera podatek od towarów i usług (VAT) wg obowiązującej stawki oraz koszty wszystkich świadczeń niezbędnych do wykonania zamówienia, w szczególności koszty transportu, ubezpieczenia, opakowania (także kaucjonowanego) itp."]
[]
[null,"Wymagania dodatkowe:"]
[]
[null,"1.","Produkty wymienione w tabeli mają być wyrobem medycznym w rozumieniu ustawy z dn. 07 kwietnia 2022 r. o wyrobach medycznych."]
[null,"2.","Wymagany okres ważności: min. 18 miesięcy od dostawy."]
[null,"3.","Miejsce dostawy:\n","WSSE Krakowie  ul. Prądnicka 76, 31-202 Kraków"]

{"sheet":"Część 24","index":24,"n_rows":18,"n_cols":10,"rows_kept":18,"merged":[[0,6,0,9],[2,0,2,9],[3,0,3,9],[4,0,4,9],[6,0,8,0],[6,1,8,1],[6,2,8,2],[6,3,8,3],[6,4,6,5],[6,6,8,6],[6,7,8,7],[6,8,8,8],[6,9,8,9],[7,4,8,4],[7,5,8,5],[10,1,10,8],[11,2,11,9],[12,2,12,9],[13,2,13,9]]}
[null,null,"AGZ.272.5.2024",{"$nulls":3},"Załącznik 1A do SWZ"]
[]
["OPIS PRZEDMIOTU ZAMÓWIENIA - KALKULACJA CENY OFERTY"]
[{"$f":"MID(CELL(\"nazwa_pliku\",A1),FIND(\"]\",CELL(\"nazwa_pliku\",A1),1)+1,100)","v":"Część 24"}]
["Pompka wodna strumieniowa (PP)"]
[{"$f":"HYPERLINK(\"#'Suma'!A1\",\"wstecz\")","v":"wstecz"}]
[null,"L.p.","Przedmiot zamówienia","Szczegółowy opis","Opis oferowanego produktu",null,"Jednostka miary","Ilość","Cena jednostkowa brutto [zł] **","Wartość brutto [zł] "]
[{"$nulls":4},"Producent*","Nr katalogowy producenta*"]
[]
[null,"1.","Pompka wodna strumieniowa (PP)","np.Producent: BRAND; \nnr kat.: 3-1596\nlub produkt równoważny***\nDo wytwarzania próżni oraz do odsysania cieczy.\nZakres dostawy: nakrętka nasadowa do podłączenia wody 3/4″, kształtka rurowa redukcyjna 1/2″, oliwka do węży, wraz z podłączeniem próżni ze złączem śrubowym GL 14.\nDo węży o śr.: 6-9 mm.",null,null,"szt.",1,null,{"$f":"H10*I10","v":{"v":0,"d":"0.00"}}]
[null,"Cena oferty (brutto):",{"$nulls":7},{"$f":"SUM(J10:J10)","v":{"v":0,"d":"0.00"}}]
[null,"*","Należy wpisać nazwę producenta oraz numer katalogowy producenta oferowanego produktu. Niepodanie ww. danych będzie skutkować odrzuceniem oferty, chyba że dane te będą jednoznacznie wynikać z innych dokumentów dołączonych do oferty."]
[null,"**","Zawiera podatek od towarów i usług (VAT) wg obowiązującej stawki oraz koszty wszystkich świadczeń niezbędnych do wykonania zamówienia, w szczególności koszty transportu, ubezpieczenia, opakowania (także kaucjonowanego) itp."]
[null,"***","Wykonawca oferujący produkt innego producenta, o innym numerze katalogowym niż wskazany jako przykład zobowiązany jest dostarczyć dokumenty potwierdzające równoważność oferowanego produktu z wymaganiami przedstawionymi w tabeli w języku polskim lub angielskim. "]
[]
[null,"Wymagania dodatkowe:"]
[]
[null,"1.","Miejsce dostawy: \n","WSSE Kraków  ul. Prądnicka 76, 31-202 Kraków\n"]

{"sheet":"Arkusz1","index":25,"n_rows":0,"n_cols":0,"rows_kept":0,"hidden":true}